{"text_format":"1","workbook":"xlsx","n_sheets":53,"sheets":["Status Sheet","COUNTRYWIDE","AL","AK","AZ","AR","CA","CO","CT","DE","DC","FL","GA","HI","IA","ID","IL","IN","KS","KY","LA","MA","ME","MD","MI","MN","MO","MS","MT","NE","NC","ND","NH","NV","NJ","NM","NY","OH","OK","OR","PA","RI","SC","SD","TN","TX ","UT","VA","VT","WA","WV","WI","WY"],"not_rendered":{"charts":0,"images":0,"macros":1,"external_links":0,"defined_names":4,"comments":0,"pivot_tables":0},"unopened":[],"bounds":{"document_bytes":16777216,"sheet_cells":100000,"rows_first":2000,"rows_last":500,"rows_between":2000,"halvings":0,"cell_chars":16384,"cell_head_chars":4096},"cells_cut":0,"cells_raw":0,"read":"whole","date_system":"1900"}

{"sheet":"Status Sheet","index":0,"n_rows":58,"n_cols":15,"rows_kept":58,"cut":false,"hidden":false,"merged":[[56,0,56,2],[57,0,57,2],[0,3,0,5],[0,6,0,8],[0,9,0,11],[53,0,53,1],[54,0,54,2],[55,0,55,2]]}
["2023-07-01",null,null,"AIG-20-CP-05",null,null,"AIG-20-GL-05",null,null,"AIG-20-CP-05"]
["STATE","RATING PLAN","MODIFICATION FACTOR","STATUS","APPROVAL DATE","EFFECTIVE DATE","STATUS","APPROVAL DATE","EFF DATE","STATUS","APPROVAL DATE","EFFECTIVE DATE","ADDITIONAL COMMENTS"]
["Alabama","ISO","+-25%","NF",null,null,"NF",null,null,"NF"]
["Alaska","ISO","+-25%","NF",null,null,"NF",null,null,"NF"]
["Arizona","ISO","+-25%","NF",null,null,"NF",null,null,"NF"]
["Arkansas  ","AIG","+-40%","E","2020-09-22","2021-01-01","E","2020-09-18","2021-01-01","E","2020-09-22","2021-01-01",null,null," "]
["California","ISO","+-25%","NF",null,null,"NF",null,null,"NF"]
["Colorado","ISO","+-25%","NF",null,null,"NF",null,null,"NF"]
["Connecticut","ISO","+-25%","NF",null,null,"NF",null,null,"NF"]
["Delaware","ISO","+-25%","NF",null,null,"NF",null,null,"NF"]
["Dist. of Col.","ISO","+-25%","NF",null,null,"NF",null,null,"NF"]
["Florida","ISO","+-25%","NF",null,null,"NF",null,null,"NF"]
["Georgia","NHGP","+-35%","NF",null,null,"NF",null,null,"NF"]
["Hawaii","N/A","N/A","NF",null,null,"NF",null,null,"NF"]
["Idaho","NHGP","+-35%","NF",null,null,"NF",null,null,"NF"]
["Illinois","AIG","+-50%","E","2020-09-22","2021-01-01","E","2020-09-18","2021-01-01","E","2020-09-22","2021-01-01"]
["Indiana","AIG","+-50%","E","2020-09-22","2021-01-01","E","2020-09-18","2021-01-01","E","2020-09-22","2021-01-01"]
["Iowa","ISO","+-25%","NF",null,null,"NF",null,null,"NF"]
["Kansas","AIG","+-40%","E","2020-10-02","2021-01-01","E","2020-10-08","2021-01-01","E","2020-10-02","2021-01-01"]
["Kentucky","AIG","+-50%","E","2020-10-06","2021-01-01","E","2020-09-18","2021-01-01","E","2020-10-06","2021-01-01"]
["Louisiana","ISO","+-25%","NF",null,null,"NF",null,null,"NF"]
["Maine","AIG","+-40%","E","2020-09-22","2021-01-01","E","2020-09-17","2021-01-01","E","2020-09-22","2021-01-01"]
["Maryland","AIG","+-40%","E","2020-09-25","2021-01-01","E","2020-09-22","2021-01-01","E","2020-09-25","2021-01-01"]
["Massachusetts","NHGP","+-25%","NF",null,null,"NF",null,null,"NF"]
["Michigan","NHGP","+-35%","NF",null,null,"NF",null,null,"NF"]
["Minnesota","AIG","+-40%","E","2020-09-30","2021-01-01","E","2020-09-21","2021-01-01","E","2020-09-30","2021-01-01"]
["Mississippi","AIG","+-40%","E","2020-09-22","2021-01-01","E","2020-09-18","2021-01-01","E","2020-09-22","2021-01-01"]
["Missouri","ISO","+-25%","NF",null,null,"NF",null,null,"NF"]
["Montana","AIG","+-40%","E","2020-09-22","2021-01-01","E","2020-09-17","2021-01-01","E","2020-09-22","2021-01-01"]
["Nebraska","N/A","N/A","NF",null,null,"NF",null,null,"NF"]
["Nevada","ISO","+-25%","NF",null,null,"NF",null,null,"NF"]
["N. Hampshire","AIG","+-40%","E","2020-10-21","2021-01-01","E","2020-10-16","2021-01-01","E","2020-10-21","2021-01-01"]
["N. Jersey","ISO","+-25%","NF",null,null,"NF",null,null,"NF"]
["N. Mexico","ISO","+-25%","NF",null,null,"NF",null,null,"NF"]
["New York","ISO","+-15%","NF",null,null,"NF",null,null,"NF"]
["N. Carolina","AIG","+-50%","E","2020-11-13","2021-01-01","P",null,null,"P"]
["N. Dakota","ISO","+-25%","NF",null,null,"NF",null,null,"NF"]
["Ohio","ISO","+-25%","NF",null,null,"NF",null,null,"NF"]
["Oklahoma","AIG","+-40%","E","2020-09-30","2021-01-01","E","2020-09-24","2021-01-01","E","2020-09-30","2021-01-01"]
["Oregon","ISO","+-25%","NF",null,null,"NF",null,null,"NF"]
["Pennsylvania","AIG","+-40%","E","2020-09-22","2021-01-01","E","2020-09-20","2021-01-01","E","2020-09-22","2021-01-01"]
["Rhode Island","AIG","+-40%","E","2020-10-22","2021-01-01","E","2020-10-20","2021-01-01","E","2020-10-22","2021-01-01"]
["S. Carolina","AIG","-40% +25%","E","2020-09-22","2021-01-01","E","2020-09-18","2021-01-01","E","2020-09-22","2021-01-01"]
["S. Dakota","ISO","+-25%","NF",null,null,"NF",null,null,"NF"]
["Tennessee","AIG","+-50%","E","2020-09-25","2021-01-01","E","2020-09-18","2021-01-01","E","2020-09-25","2021-01-01"]
["Texas","AIG","+-40%","E","2020-12-07","2021-01-01","NF",null,null,"P"]
["Utah","ISO","+-25%","NF",null,null,"NF",null,null,"NF"]
["Vermont","AIG","+-50%","E","2020-09-24","2021-01-01","E","2020-09-22","2021-01-01","E","2020-09-24","2021-01-01"]
["Virginia","AIG","+-50%","E","2020-11-19","2021-01-01","P",null,null,"P"]
["Washington","ISO","+-25%","NF",null,null,"NF",null,null,"NF"]
["W. Virginia","AIG","+-40%","E","2020-09-23","2021-01-01","E","2020-09-18","2021-01-01","E","2020-09-23","2021-01-01"]
["Wisconsin","AIG","+-50%","E","2020-09-24","2021-01-01","E","2020-09-22","2021-01-01","E","2020-09-24","2021-01-01"]
["Wyoming","AIG","+-50%","E","2020-10-06","2021-01-01","E","2020-10-02","2021-01-01","E","2020-10-06","2021-01-01"]
[]
["NOTES",null,null,null,null,null,22,null,null,{"$f":"51-J58","v":23}]
["E= EFFECTIVE",null,null,null,null,null,{"$f":"COUNTIF(G3:G53,\"P\")","v":2},null,null,{"$f":"COUNTIF(J3:J53,\"P\")","v":3}]
["NF= NOT FILED",null,null,null,null,null,{"$f":"COUNTIF(G4:G54,\"E\")","v":20},null,null,{"$f":"COUNTIF(J3:J53, \"E\")","v":20}]
[null,null,null,null,null,null,29,null,null,{"$f":"COUNTIF(J2:J52,\"NF\")","v":28}]

{"sheet":"COUNTRYWIDE","index":1,"n_rows":35,"n_cols":3,"rows_kept":35,"cut":false,"hidden":true,"merged":[[13,0,13,11],[14,0,14,11],[0,0,0,11],[1,0,1,11],[2,0,2,11],[3,0,3,11],[4,0,4,11],[12,0,12,11]]}
[]
["INDIVIDUAL RISK PREMIUM MODIFICATION PLAN"]
["RATING INFORMATION FORM"]
["EXISTING RATING:"]
["ISO CW PLAN APPLIES IN ALL STATES WITH MAX CR OR DB 25% EXCEPT:"]
[" +/- 35%  -  GA, IL, ID, IN, KY, MI, MT, VA, WV, WI, WY"]
[" +/- 40%  -  ME,RI,VT"]
["25% DB;  50% CR  -  NC & TN"]
["25% DB;  40% CR  -   SC"]
["Max Credit - 40% Credit only  -  NH"]
["Max Credit 40%  Max Debit - 40% -  MS"]
["Max Credit 40%  Max Debit - 25% -  MA"]
["NEW YORK CAP ON COMBINED MAX CR OR DB - USE SEPARATE WORKSHEET -  MAX IRPM 15%"]
["IRPM RATING IS NOT ALLOWED IN: HAWAII, NEBRASKA "]
["NEW:   \nAIG PROPRIETARY IRPM RATING PLAN IN THE FOLLOWING STATES:\n40% +/-       Approved States:  AR, KS, ME, MD, MN, MS, MT, NH, OK, PA, RI,  WV\n                   Pending States:  VA\n50% +/-       Approved States: IL, IN, KY, TN, VT,  WI, WY\n                   Pending States:  NC, TX \n40%+/25%-  Approved State:  SC"]
[]
[]
[]
[null,null,"ISO CW -  +/- 25%"]
[]
[null,null,"35% CR & DB - GA, IL, ID, IN, KY, MI, MT, VA, WV, WI, WY"]
[]
[null,null,"40% CR & DB - ME,RI,VT"]
[]
[null,null,"NH - 40% CREDIT ONLY"]
[]
[null,null,"MS -  +/- 40%"]
[]
[null,null,"NC & TN - 25% DB;  50% CR"]
[]
[null,null,"MA - 25% DB;  40% CR"]
[]
[null,null,"NY  -   MAX IRPM 15%"]
[]
[null,null,"SC - ALL FILED COS - 25% DB;  40% CR"]

{"sheet":"AL","index":2,"n_rows":44,"n_cols":6,"rows_kept":44,"cut":false,"hidden":false,"merged":[[35,1,35,2],[6,0,6,5],[2,0,2,5],[5,0,5,5],[1,0,1,5],[3,0,3,5],[4,0,4,5],[9,2,9,4],[10,3,10,4]]}
["ALABAMA"]
["ISO COUNTRYWIDE IRPM RATING PLAN"]
["As of July 2023"]
["INDIVIDUAL RISK PREMIUM MODIFICATION PLAN"]
["RATING INFORMATION FORM"]
[]
["A schedule rating modification may also be applied to the otherwise chargeable premium in accordance with the following table, subject to a maximum credit of -25% or debit of +25%, to reflect such characteristics of the risk as are not reflected in its experience."]
["NAMED INSURED","EFFECTIVE DATE",null,null,null,"AIG COMPANY AND POLICY NUMBER"]
[]
["RISK ","DESCRIPTIONS","MODIFICATIONS",null,null,"REASONS"]
["CHARACTERISTICS",null,"RANGE","% APPLIED"]
[null,null,null,"CR","DB"]
["MANAGEMENT","Cooperation in matters of","8%+/-"]
[null,"safeguarding and property handling"]
[null,"of the property covered."]
[]
[]
["LOCATION","Accessibility, congestion and","7% +/-"]
[null,"exposures"]
[]
[]
["BUILDING FEATURES","Age, condition and unusual","5% +/-"]
[null,"structural features"]
[]
[]
["PREMISES AND","Care, condition and type","5% +/-"]
["EQUIPMENT"]
[]
[]
["EMPLOYEES","Selection, training, supervision","3% +/-"]
[null,"and experience"]
[]
[]
["PROTECTION","Not otherwise recognized","2% +/-"]
[]
[null,"TOTAL CR / DB:",null,{"$f":"SUM(D13:D35)","v":0},{"$f":"SUM(E13:E35)","v":0}]
[]
["UNDERWRITER SIGNATURE","DATE"]
[]
[]
["NOTES"]
[]
["DO NOT USE NEGATIVE NUMBERS WHEN APPLYING A CREDIT"]
["SEE CLM INDIVIDUAL RISK PREMIUM MODIFICATION PLAN FOR COMPLETE DESCRIPTION OF CHARACTERISTICS AND RULES FOR APPLICATION"]

{"sheet":"AK","index":3,"n_rows":45,"n_cols":6,"rows_kept":45,"cut":false,"hidden":false,"merged":[[9,2,9,4],[10,3,10,4],[36,1,36,2],[1,0,1,5],[3,0,3,5],[6,0,6,5],[5,0,5,5],[8,2,8,4]]}
["ALASKA"]
["ISO COUNTRYWIDE IRPM RATING PLAN"]
["As of July 2023"]
["INDIVIDUAL RISK PREMIUM MODIFICATION PLAN"]
["RATING INFORMATION FORM"]
[]
["A schedule rating modification may also be applied to the otherwise chargeable premium in accordance with the following table, subject to a maximum credit of -25% or debit of +25%, to reflect such characteristics of the risk as are not reflected in its experience."]
["NAMED INSURED","EFFECTIVE DATE",null,null,null,"AIG COMPANY AND POLICY NUMBER"]
[]
["RISK ","DESCRIPTIONS","MODIFICATIONS",null,null,"REASONS"]
["CHARACTERISTICS",null,"RANGE","% APPLIED"]
[null,null,null,"CR","DB"]
["MANAGEMENT","Cooperation in matters of","8% +/-"]
[null,"safeguarding and property handling"]
[null,"of the property covered."]
[]
[]
["LOCATION","Accessibility, congestion and","7% +/-"]
[]
[null,"exposures"]
[]
[]
["BUILDING FEATURES","Age, condition and unusual","5% +/-"]
[null,"structural features"]
[]
[]
["PREMISES AND","Care, condition and type","5% +/-"]
["EQUIPMENT"]
[]
[]
["EMPLOYEES","Selection, training, supervision","3% +/-"]
[null,"and experience"]
[]
[]
["PROTECTION","Not otherwise recognized","2% +/-"]
[]
[null,"TOTAL CR / DB:",null,{"$f":"SUM(D13:D36)","v":0},{"$f":"SUM(E13:E36)","v":0}]
[]
["UNDERWRITER SIGNAURE","     DATE"]
[]
[]
["NOTES"]
[]
["DO NOT USE NEGATIVE NUMBERS WHEN APPLYING A CREDIT"]
["SEE CLM INDIVIDUAL RISK PREMIUM MODIFICATION PLAN FOR COMPLETE DESCRIPTION OF CHARACTERISTICS AND RULES FOR APPLICATION"]

{"sheet":"AZ","index":4,"n_rows":43,"n_cols":6,"rows_kept":43,"cut":false,"hidden":false,"merged":[[9,2,9,4],[10,3,10,4],[35,1,35,2],[0,0,0,5],[1,0,1,5],[2,0,2,5],[3,0,3,5],[4,0,4,5],[5,0,5,5],[6,0,6,5]]}
["ARIZONA"]
["ISO COUNTRYWIDE IRPM RATING PLAN"]
["As of July 2023"]
["INDIVIDUAL RISK PREMIUM MODIFICATION PLAN"]
["RATING INFORMATION FORM"]
[]
["A schedule rating modification may also be applied to the otherwise chargeable premium in accordance with the following table, subject to a maximum credit of -25% or debit of +25%, to reflect such characteristics of the risk as are not reflected in its experience."]
["NAMED INSURED","EFFECTIVE DATE",null,null,null,"AIG COMPANY AND POLICY NUMBER"]
[]
["RISK ","DESCRIPTIONS","MODIFICATIONS",null,null,"REASONS"]
["CHARACTERISTICS",null,"RANGE","% APPLIED"]
[null,null,null,"CR","DB"]
["MANAGEMENT","Cooperation in matters of","8% +/-"]
[null,"safeguarding and property handling"]
[null,"of the property covered."]
[]
[]
["LOCATION","Accessibility, congestion and","7% +/-"]
[null,"exposures"]
[]
[]
["BUILDING FEATURES","Age, condition and unusual","5% +/-"]
[null,"structural features"]
[]
[]
["PREMISES AND","Care, condition and type","5% +/-"]
["EQUIPMENT"]
[]
[]
["EMPLOYEES","Selection, training, supervision","3% +/-"]
[null,"and experience"]
[]
[]
["PROTECTION","Not otherwise recognized","2% +/-"]
[]
[null,"TOTAL CR / DB:",null,{"$f":"SUM(D13:D35)","v":0},{"$f":"SUM(E13:E35)","v":0}]
[]
["UNDERWRITER SIGNATURE","    DATE"]
[]
["NOTES"]
[]
["DO NOT USE NEGATIVE NUMBERS WHEN APPLYING A CREDIT"]
["SEE CLM INDIVIDUAL RISK PREMIUM MODIFICATION PLAN FOR COMPLETE DESCRIPTION OF CHARACTERISTICS AND RULES FOR APPLICATION",null," "]

{"sheet":"AR","index":5,"n_rows":44,"n_cols":6,"rows_kept":44,"cut":false,"hidden":false,"merged":[[9,2,9,4],[10,3,10,4],[35,1,35,2],[0,0,0,5],[1,0,1,5],[2,0,2,5],[3,0,3,5],[4,0,4,5],[5,0,5,5],[6,0,6,5]]}
["ARKANSAS"]
["AIG PROPRIETARY IRPM RATING PLAN"]
["As of July 2023"]
["INDIVIDUAL RISK PREMIUM MODIFICATION PLAN"]
["RATING INFORMATION FORM"]
[]
["A schedule rating modification may also be applied to the otherwise chargeable premium in accordance with the following table, subject to a maximum credit of -40% or debit of +40%, to reflect such characteristics of the risk as are not reflected in its experience."]
["NAMED INSURED","EFFECTIVE DATE",null,null,null,"AIG COMPANY AND POLICY NUMBER"]
[]
["RISK ","DESCRIPTIONS","MODIFICATIONS",null,null,"REASONS"]
["CHARACTERISTICS",null,"RANGE","% APPLIED"]
[null,null,null,"CR","DB"]
["MANAGEMENT","Cooperation in matters of","18% +/-"]
[null,"safeguarding and property handling"]
[null,"of the property covered."]
[]
[]
["LOCATION","Accessibility, congestion and","16% +/-"]
[null,"exposures"]
[]
[]
["BUILDING FEATURES","Age, condition and unusual","14% +/-"]
[null,"structural features"]
[]
[]
["PREMISES AND","Care, condition and type","14% +/-"]
["EQUIPMENT"]
[]
[]
["EMPLOYEES","Selection, training, supervision","8% +/-"]
[null,"and experience"]
[]
[]
["PROTECTION","Not otherwise recognized","5% +/-"]
[]
[null,"TOTAL CR / DB:",null,{"$f":"SUM(D13:D35)","v":0},{"$f":"SUM(E13:E35)","v":0}]
[]
[]
["UNDERWRITER SIGNATURE","    DATE"]
[]
["NOTES"]
[]
["DO NOT USE NEGATIVE NUMBERS WHEN APPLYING A CREDIT"]
["SEE CLM INDIVIDUAL RISK PREMIUM MODIFICATION PLAN FOR COMPLETE DESCRIPTION OF CHARACTERISTICS AND RULES FOR APPLICATION"]

{"sheet":"CA","index":6,"n_rows":43,"n_cols":6,"rows_kept":43,"cut":false,"hidden":false,"merged":[[6,0,6,5],[9,2,9,4],[10,3,10,4],[35,1,35,2],[0,0,0,5],[1,0,1,5],[2,0,2,5],[3,0,3,5],[4,0,4,5],[5,0,5,5]]}
["CALIFORNIA"]
["ISO COUNTRYWIDE IRPM RATING PLAN"]
["As of July 2023"]
["INDIVIDUAL RISK PREMIUM MODIFICATION PLAN"]
["RATING INFORMATION FORM"]
[]
["A schedule rating modification may also be applied to the otherwise chargeable premium in accordance with the following table, subject to a maximum credit of -25% or debit of +25%, to reflect such characteristics of the risk as are not reflected in its experience."]
["NAMED INSURED","EFFECTIVE DATE",null,null,null,"AIG COMPANY AND POLICY NUMBER"]
[]
["RISK ","DESCRIPTIONS","MODIFICATIONS",null,null,"REASONS"]
["CHARACTERISTICS",null,"RANGE","% APPLIED"]
[null,null,null,"CR","DB"]
["MANAGEMENT","Cooperation in matters of","8% +/-"]
[null,"safeguarding and property handling"]
[null,"of the property covered."]
[]
[]
["LOCATION","Accessibility, congestion and","7% +/-"]
[null,"exposures"]
[]
[]
["BUILDING FEATURES","Age, condition and unusual","5% +/-"]
[null,"structural features"]
[]
[]
["PREMISES AND","Care, condition and type","5% +/-"]
["EQUIPMENT"]
[]
[]
["EMPLOYEES","Selection, training, supervision","3% +/-"]
[null,"and experience"]
[]
[]
["PROTECTION","Not otherwise recognized","2% +/-"]
[]
[null,"TOTAL CR / DB:",null,{"$f":"SUM(D13:D35)","v":0},{"$f":"SUM(E13:E35)","v":0}]
[]
["UNDERWRITER SIGNATURE","    DATE"]
[]
["NOTES"]
[]
["DO NOT USE NEGATIVE NUMBERS WHEN APPLYING A CREDIT"]
["SEE CLM INDIVIDUAL RISK PREMIUM MODIFICATION PLAN FOR COMPLETE DESCRIPTION OF CHARACTERISTICS AND RULES FOR APPLICATION"]

{"sheet":"CO","index":7,"n_rows":43,"n_cols":6,"rows_kept":43,"cut":false,"hidden":false,"merged":[[6,0,6,5],[9,2,9,4],[10,3,10,4],[35,1,35,2],[0,0,0,5],[1,0,1,5],[2,0,2,5],[3,0,3,5],[4,0,4,5],[5,0,5,5]]}
["COLORADO"]
["ISO COUNTRYWIDE IRPM RATING PLAN"]
["As of July 2023"]
["INDIVIDUAL RISK PREMIUM MODIFICATION PLAN"]
["RATING INFORMATION FORM"]
[]
["A schedule rating modification may also be applied to the otherwise chargeable premium in accordance with the following table, subject to a maximum credit of -25% or debit of +25%, to reflect such characteristics of the risk as are not reflected in its experience."]
["NAMED INSURED","EFFECTIVE DATE",null,null,null,"AIG COMPANY AND POLICY NUMBER"]
[]
["RISK ","DESCRIPTIONS","MODIFICATIONS",null,null,"REASONS"]
["CHARACTERISTICS",null,"RANGE","% APPLIED"]
[null,null,null,"CR","DB"]
["MANAGEMENT","Cooperation in matters of","8% +/-"]
[null,"safeguarding and property handling"]
[null,"of the property covered."]
[]
[]
["LOCATION","Accessibility, congestion and","7% +/-"]
[null,"exposures"]
[]
[]
["BUILDING FEATURES","Age, condition and unusual","5% +/-"]
[null,"structural features"]
[]
[]
["PREMISES AND","Care, condition and type","5% +/-"]
["EQUIPMENT"]
[]
[]
["EMPLOYEES","Selection, training, supervision","3% +/-"]
[null,"and experience"]
[]
[]
["PROTECTION","Not otherwise recognized","2% +/-"]
[]
[null,"TOTAL CR / DB:",null,{"$f":"SUM(D13:D35)","v":0},{"$f":"SUM(E13:E35)","v":0}]
[]
["UNDERWRITER SIGNATURE","    DATE"]
[]
["NOTES"]
[]
["DO NOT USE NEGATIVE NUMBERS WHEN APPLYING A CREDIT"]
["SEE CLM INDIVIDUAL RISK PREMIUM MODIFICATION PLAN FOR COMPLETE DESCRIPTION OF CHARACTERISTICS AND RULES FOR APPLICATION"]

{"sheet":"CT","index":8,"n_rows":42,"n_cols":6,"rows_kept":42,"cut":false,"hidden":false,"merged":[[6,0,6,5],[9,2,9,4],[10,3,10,4],[35,1,35,2],[0,0,0,5],[1,0,1,5],[2,0,2,5],[3,0,3,5],[4,0,4,5],[5,0,5,5]]}
["CONNECTICUT"]
["ISO COUNTRYWIDE IRPM RATING PLAN"]
["As of July 2023"]
["INDIVIDUAL RISK PREMIUM MODIFICATION PLAN"]
["RATING INFORMATION FORM"]
[]
["A schedule rating modification may also be applied to the otherwise chargeable premium in accordance with the following table, subject to a maximum credit of -25% or debit of +25%, to reflect such characteristics of the risk as are not reflected in its experience."]
["NAMED INSURED","EFFECTIVE DATE",null,null,null,"AIG COMPANY AND POLICY NUMBER"]
[]
["RISK ","DESCRIPTIONS","MODIFICATIONS",null,null,"REASONS"]
["CHARACTERISTICS",null,"RANGE","% APPLIED"]
[null,null,null,"CR","DB"]
["MANAGEMENT","Cooperation in matters of","8% +/-"]
[null,"safeguarding and property handling"]
[null,"of the property covered."]
[]
[]
["LOCATION","Accessibility, congestion and","7% +/-"]
[null,"exposures"]
[]
[]
["BUILDING FEATURES","Age, condition and unusual","5% +/-"]
[null,"structural features"]
[]
[]
["PREMISES AND","Care, condition and type","5% +/-"]
["EQUIPMENT"]
[]
[]
["EMPLOYEES","Selection, training, supervision","3% +/-"]
[null,"and experience"]
[]
[]
["PROTECTION","Not otherwise recognized","2% +/-"]
[]
[null,"TOTAL CR / DB:",null,{"$f":"SUM(D13:D35)","v":0},{"$f":"SUM(E13:E35)","v":0}]
["UNDERWRITER SIGNATURE","   DATE"]
[]
["NOTES"]
[]
["DO NOT USE NEGATIVE NUMBERS WHEN APPLYING A CREDIT"]
["SEE CLM INDIVIDUAL RISK PREMIUM MODIFICATION PLAN FOR COMPLETE DESCRIPTION OF CHARACTERISTICS AND RULES FOR APPLICATION"]

{"sheet":"DE","index":9,"n_rows":43,"n_cols":6,"rows_kept":43,"cut":false,"hidden":false,"merged":[[6,0,6,5],[9,2,9,4],[10,3,10,4],[35,1,35,2],[0,0,0,5],[1,0,1,5],[2,0,2,5],[3,0,3,5],[4,0,4,5],[5,0,5,5]]}
["DELAWARE"]
["ISO COUNTRYWIDE IRPM RATING PLAN"]
["As of July 2023"]
["INDIVIDUAL RISK PREMIUM MODIFICATION PLAN"]
["RATING INFORMATION FORM"]
[]
["A schedule rating modification may also be applied to the otherwise chargeable premium in accordance with the following table, subject to a maximum credit of -25% or debit of +25%, to reflect such characteristics of the risk as are not reflected in its experience."]
["NAMED INSURED","EFFECTIVE DATE",null,null,null,"AIG COMPANY AND POLICY NUMBER"]
[]
["RISK ","DESCRIPTIONS","MODIFICATIONS",null,null,"REASONS"]
["CHARACTERISTICS",null,"RANGE","% APPLIED"]
[null,null,null,"CR","DB"]
["MANAGEMENT","Cooperation in matters of","8% +/-"]
[null,"safeguarding and property handling"]
[null,"of the property covered."]
[]
[]
["LOCATION","Accessibility, congestion and","7% +/-"]
[null,"exposures"]
[]
[]
["BUILDING FEATURES","Age, condition and unusual","5% +/-"]
[null,"structural features"]
[]
[]
["PREMISES AND","Care, condition and type","5% +/-"]
["EQUIPMENT"]
[]
[]
["EMPLOYEES","Selection, training, supervision","3% +/-"]
[null,"and experience"]
[]
[]
["PROTECTION","Not otherwise recognized","2% +/-"]
[]
[null,"TOTAL CR / DB:",null,{"$f":"SUM(D13:D35)","v":0},{"$f":"SUM(E13:E35)","v":0}]
[]
["UNDERWRITER SIGNATURE","  DATE"]
[]
["NOTES"]
[]
["DO NOT USE NEGATIVE NUMBERS WHEN APPLYING A CREDIT"]
["SEE CLM INDIVIDUAL RISK PREMIUM MODIFICATION PLAN FOR COMPLETE DESCRIPTION OF CHARACTERISTICS AND RULES FOR APPLICATION"]

{"sheet":"DC","index":10,"n_rows":43,"n_cols":6,"rows_kept":43,"cut":false,"hidden":false,"merged":[[6,0,6,5],[9,2,9,4],[10,3,10,4],[35,1,35,2],[0,0,0,5],[1,0,1,5],[2,0,2,5],[3,0,3,5],[4,0,4,5],[5,0,5,5]]}
["DISTRICT OF COLUMBIA"]
["ISO COUNTRYWIDE IRPM RATING PLAN"]
["As of July 2023"]
["INDIVIDUAL RISK PREMIUM MODIFICATION PLAN"]
["RATING INFORMATION FORM"]
[]
["A schedule rating modification may also be applied to the otherwise chargeable premium in accordance with the following table, subject to a maximum credit of -25% or debit of +25%, to reflect such characteristics of the risk as are not reflected in its experience."]
["NAMED INSURED","EFFECTIVE DATE",null,null,null,"AIG COMPANY AND POLICY NUMBER"]
[]
["RISK ","DESCRIPTIONS","MODIFICATIONS",null,null,"REASONS"]
["CHARACTERISTICS",null,"RANGE","% APPLIED"]
[null,null,null,"CR","DB"]
["MANAGEMENT","Cooperation in matters of","8% +/-"]
[null,"safeguarding and property handling"]
[null,"of the property covered."]
[]
[]
["LOCATION","Accessibility, congestion and","7% +/-"]
[null,"exposures"]
[]
[]
["BUILDING FEATURES","Age, condition and unusual","5% +/-"]
[null,"structural features"]
[]
[]
["PREMISES AND","Care, condition and type","5% +/-"]
["EQUIPMENT"]
[]
[]
["EMPLOYEES","Selection, training, supervision","3% +/-"]
[null,"and experience"]
[]
[]
["PROTECTION","Not otherwise recognized","2% +/-"]
[]
[null,"TOTAL CR / DB:",null,{"$f":"SUM(D13:D35)","v":0},{"$f":"SUM(E13:E35)","v":0}]
[]
["UNDERWRITER SIGNATURE","  DATE"]
[]
["NOTES"]
[]
["DO NOT USE NEGATIVE NUMBERS WHEN APPLYING A CREDIT"]
["SEE CLM INDIVIDUAL RISK PREMIUM MODIFICATION PLAN FOR COMPLETE DESCRIPTION OF CHARACTERISTICS AND RULES FOR APPLICATION"]

{"sheet":"FL","index":11,"n_rows":43,"n_cols":6,"rows_kept":43,"cut":false,"hidden":false,"merged":[[6,0,6,5],[9,2,9,4],[10,3,10,4],[35,1,35,2],[0,0,0,5],[1,0,1,5],[2,0,2,5],[3,0,3,5],[4,0,4,5],[5,0,5,5]]}
["FLORIDA"]
["ISO COUNTRYWIDE IRPM RATING PLAN"]
["As of July 2023"]
["INDIVIDUAL RISK PREMIUM MODIFICATION PLAN"]
["RATING INFORMATION FORM"]
[]
["A schedule rating modification may also be applied to the otherwise chargeable premium in accordance with the following table, subject to a maximum credit of -25% or debit of +25%, to reflect such characteristics of the risk as are not reflected in its experience."]
["NAMED INSURED","EFFECTIVE DATE",null,null,null,"AIG COMPANY AND POLICY NUMBER"]
[]
["RISK ","DESCRIPTIONS","MODIFICATIONS",null,null,"REASONS"]
["CHARACTERISTICS",null,"RANGE","% APPLIED"]
[null,null,null,"CR","DB"]
["MANAGEMENT","Cooperation in matters of","8% +/-"]
[null,"safeguarding and property handling"]
[null,"of the property covered."]
[]
[]
["LOCATION","Accessibility, congestion and","7% +/-"]
[null,"exposures"]
[]
[]
["BUILDING FEATURES","Age, condition and unusual","5% +/-"]
[null,"structural features"]
[]
[]
["PREMISES AND","Care, condition and type","5% +/-"]
["EQUIPMENT"]
[]
[]
["EMPLOYEES","Selection, training, supervision","3% +/-"]
[null,"and experience"]
[]
[]
["PROTECTION","Not otherwise recognized","2% +/-"]
[]
[null,"TOTAL CR / DB:",null,{"$f":"SUM(D13:D35)","v":0},{"$f":"SUM(E13:E35)","v":0}]
[]
["UNDERWRITER SIGNATURE","  DATE"]
[]
["NOTES"]
[]
["DO NOT USE NEGATIVE NUMBERS WHEN APPLYING A CREDIT"]
["SEE CLM INDIVIDUAL RISK PREMIUM MODIFICATION PLAN FOR COMPLETE DESCRIPTION OF CHARACTERISTICS AND RULES FOR APPLICATION"]

{"sheet":"GA","index":12,"n_rows":44,"n_cols":6,"rows_kept":44,"cut":false,"hidden":false,"merged":[[36,1,36,2],[0,0,0,5],[1,0,1,13],[2,0,2,13],[3,0,3,13],[4,0,4,13],[10,2,10,4],[11,3,11,4],[5,0,5,5]]}
["GEORGIA"]
["NEW HAMPSHIRE GROUP COMPANIES"]
["2023-07-01"]
["INDIVIDUAL RISK PREMIUM MODIFICATION PLAN"]
["RATING INFORMATION FORM"]
["A schedule rating modification may also be applied to the otherwise chargeable premium in accordance with the following table, subject to a maximum credit of -35% or debit of +35%, to reflect such characteristics of the risk as are not reflected in its experience."]
[]
["NAMED INSURED","EFFECTIVE DATE",null,null,null,"AIG COMPANY AND POLICY NUMBER"]
[]
[]
["RISK ","DESCRIPTIONS","MODIFICATIONS",null,null,"REASONS"]
["CHARACTERISTICS",null,"RANGE","% APPLIED"]
[null,null,null,"CR","DB"]
["MANAGEMENT","Cooperation in matters of","12% +/-"]
[null,"safeguarding and property handling"]
[null,"of the property covered."]
[]
[]
["LOCATION","Accessibility, congestion and","7% +/-"]
[null,"exposures"]
[]
[]
["BUILDING FEATURES","Age, condition and unusual","5% +/-"]
[null,"structural features"]
[]
[]
["PREMISES AND","Care, condition and type","10% +/-"]
["EQUIPMENT"]
[]
[]
["EMPLOYEES","Selection, training, supervision","8% +/-"]
[null,"and experience"]
[]
[]
["PROTECTION","Not otherwise recognized","2% +/-"]
[]
[null,"TOTAL CR / DB:"]
[]
["UNDERWRITER SIGNATURE","DATE"]
[]
["NOTES"]
[]
["DO NOT USE NEGATIVE NUMBERS WHEN APPLYING A CREDIT"]
["SEE CLM INDIVIDUAL RISK PREMIUM MODIFICATION PLAN FOR COMPLETE DESCRIPTION OF CHARACTERISTICS AND RULES FOR APPLICATION"]

{"sheet":"HI","index":13,"n_rows":3,"n_cols":1,"rows_kept":3,"cut":false,"hidden":false,"merged":[[0,0,0,8],[2,0,2,8]]}
["HAWAII"]
["2023-07-01"]
["IRPM RATING IS NOT ALLOWED IN HAWAII "]

{"sheet":"IA","index":14,"n_rows":43,"n_cols":6,"rows_kept":43,"cut":false,"hidden":false,"merged":[[6,0,6,5],[9,2,9,4],[10,3,10,4],[35,1,35,2],[0,0,0,5],[1,0,1,5],[2,0,2,5],[3,0,3,5],[4,0,4,5],[5,0,5,5]]}
["IOWA"]
["ISO COUNTRYWIDE IRPM RATING PLAN"]
["As of July 2023"]
["INDIVIDUAL RISK PREMIUM MODIFICATION PLAN"]
["RATING INFORMATION FORM"]
["A schedule rating modification may also be applied to the otherwise chargeable premium in accordance with the following table, subject to a maximum credit of -35% or debit of +35%, to reflect such characteristics of the risk as are not reflected in its experience."]
["A schedule rating modification may also be applied to the otherwise chargeable premium in accordance with the following table, subject to a maximum credit of -25% or debit of +25%, to reflect such characteristics of the risk as are not reflected in its experience."]
["NAMED INSURED","EFFECTIVE DATE",null,null,null,"AIG COMPANY AND POLICY NUMBER"]
[]
["RISK ","DESCRIPTIONS","MODIFICATIONS",null,null,"REASONS"]
["CHARACTERISTICS",null,"RANGE","% APPLIED"]
[null,null,null,"CR","DB"]
["MANAGEMENT","Cooperation in matters of","8% +/-"]
[null,"safeguarding and property handling"]
[null,"of the property covered."]
[]
[]
["LOCATION","Accessibility, congestion and","7% +/-"]
[null,"exposures"]
[]
[]
["BUILDING FEATURES","Age, condition and unusual","5% +/-"]
[null,"structural features"]
[]
[]
["PREMISES AND","Care, condition and type","5% +/-"]
["EQUIPMENT"]
[]
[]
["EMPLOYEES","Selection, training, supervision","3% +/-"]
[null,"and experience"]
[]
[]
["PROTECTION","Not otherwise recognized","2% +/-"]
[]
[null,"TOTAL CR / DB:",null,{"$f":"SUM(D13:D35)","v":0},{"$f":"SUM(E13:E35)","v":0}]
[]
["UNDERWRITER SIGNATURE","DATE"]
[]
["NOTES"]
[]
["DO NOT USE NEGATIVE NUMBERS WHEN APPLYING A CREDIT"]
["SEE CLM INDIVIDUAL RISK PREMIUM MODIFICATION PLAN FOR COMPLETE DESCRIPTION OF CHARACTERISTICS AND RULES FOR APPLICATION"]

{"sheet":"ID","index":15,"n_rows":42,"n_cols":6,"rows_kept":42,"cut":false,"hidden":false,"merged":[[9,3,9,4],[34,1,34,2],[0,0,0,5],[1,0,1,5],[2,0,2,5],[3,0,3,5],[4,0,4,5],[8,2,8,4],[5,0,5,5]]}
["IDAHO"]
["NEW HAMPSHIRE GROUP COMPANIES"]
[]
["INDIVIDUAL RISK PREMIUM MODIFICATION PLAN"]
["RATING INFORMATION FORM"]
["A schedule rating modification may also be applied to the otherwise chargeable premium in accordance with the following table, subject to a maximum credit of -35% or debit of +35%, to reflect such characteristics of the risk as are not reflected in its experience."]
["NAMED INSURED","EFFECTIVE DATE",null,null,null,"AIG COMPANY AND POLICY EFFECTIVE DATE"]
[]
["RISK ","DESCRIPTIONS","MODIFICATIONS",null,null,"REASONS"]
["CHARACTERISTICS",null,"RANGE","% APPLIED"]
[null,null,null,"CR","DB"]
["MANAGEMENT","Cooperation in matters of","12% +/-"]
[null,"safeguarding and property handling"]
[null,"of the property covered."]
[]
[]
["LOCATION","Accessibility, congestion and","7% +/-"]
[null,"exposures"]
[]
[]
["BUILDING FEATURES","Age, condition and unusual","5% +/-"]
[null,"structural features"]
[]
[]
["PREMISES AND","Care, condition and type","10% +/-"]
["EQUIPMENT"]
[]
[]
["EMPLOYEES","Selection, training, supervision","8% +/-"]
[null,"and experience"]
[]
[]
["PROTECTION","Not otherwise recognized","2% +/-"]
[]
[null,"TOTAL CR / DB:"]
[]
["UNDERWRITER SIGNATURE","DATE"]
[]
["NOTES"]
[]
["DO NOT USE NEGATIVE NUMBERS WHEN APPLYING A CREDIT"]
["SEE CLM INDIVIDUAL RISK PREMIUM MODIFICATION PLAN FOR COMPLETE DESCRIPTION OF CHARACTERISTICS AND RULES FOR APPLICATION"]

{"sheet":"IL","index":16,"n_rows":37,"n_cols":6,"rows_kept":37,"cut":false,"hidden":false,"merged":[[10,3,10,4],[9,2,9,4],[1,0,1,5],[2,0,2,5],[3,0,3,5],[4,0,4,5],[5,0,5,5],[6,0,6,5]]}
["ILLINOIS"]
["AIG PROPRIETARY IRPM RATING PLAN"]
["As of JULY 2023"]
["INDIVIDUAL RISK PREMIUM MODIFICATION PLAN"]
["RATING INFORMATION FORM"]
["A schedule rating modification may also be applied to the otherwise chargeable premium in accordance with the following table, subject to a maximum credit of -50% or debit of +50%, to reflect such characteristics of the risk as are not reflected in its experience."]
[]
["NAMED INSURED","EFFECTIVE DATE",null,null,null,"AIG COMP0ANY AND POLICY NUMBER"]
[]
["RISK ","DESCRIPTIONS","MODIFICATIONS",null,null,"REASONS"]
["CHARACTERISTICS",null,"RANGE","% APPLIED"]
[null,null,null,"CR","DB"]
["CLASSIFICATION","Peculiarities of Classification","10%+/-"]
[]
[]
["LOCATION","Exposure inside and outside of premises","5%+/-"]
[]
[]
["PREMISES ","Care and condition of premises","10%+/-"]
[]
["EQUIPMENT","Type, condition and care","10%+/-"]
[]
[]
["EMPLOYEES","Selection, training, supervision","6%+/-"]
[null,"and experience"]
[]
[]
["COOPERATION","Medical Facilities Safety Programs","2%+/-"]
[]
[null,"TOTAL CR / DB:"]
[]
["UNDERWRITER SIGNATURE","DATE"]
[]
["NOTES"]
[]
["DO NOT USE NEGATIVE NUMBERS WHEN APPLYING A CREDIT"]
["SEE CLM INDIVIDUAL RISK PREMIUM MODIFICATION PLAN FOR COMPLETE DESCRIPTION OF CHARACTERISTICS AND RULES FOR APPLICATION"]

{"sheet":"IN","index":17,"n_rows":43,"n_cols":6,"rows_kept":43,"cut":false,"hidden":false,"merged":[[9,2,9,4],[10,3,10,4],[35,1,35,2],[1,0,1,5],[2,0,2,5],[3,0,3,5],[4,0,4,5],[5,0,5,5],[6,0,6,5]]}
["INDIANA"]
["AIG PROPRIETARY IRPM RATING PLAN"]
["As of JULY 2023"]
["INDIVIDUAL RISK PREMIUM MODIFICATION PLAN"]
["RATING INFORMATION FORM"]
["A schedule rating modification may also be applied to the otherwise chargeable premium in accordance with the following table, subject to a maximum credit of -50% or debit of +50%, to reflect such characteristics of the risk as are not reflected in its experience."]
[]
["NAMED INSURED","EFFECTIVE DATE",null,null,null,"AIG COMPANY AND POLICY NUMBER"]
[]
["RISK ","DESCRIPTIONS","MODIFICATIONS",null,null,"REASONS"]
["CHARACTERISTICS",null,"RANGE","% APPLIED"]
[null,null,null,"CR","DB"]
["MANAGEMENT","Cooperation in matters of","18% +/-"]
[null,"safeguarding and property handling"]
[null,"of the property covered."]
[]
[]
["LOCATION","Accessibility, congestion and","16% +/-"]
[null,"exposures"]
[]
[]
["BUILDING FEATURES","Age, condition and unusual","14% +/-"]
[null,"structural features"]
[]
[]
["PREMISES AND","Care, condition and type","14% +/-"]
["EQUIPMENT"]
[]
[]
["EMPLOYEES","Selection, training, supervision","8% +/-"]
[null,"and experience"]
[]
[]
["PROTECTION","Not otherwise recognized","5% +/-"]
[]
[null,"TOTAL CR / DB:",null,{"$f":"SUM(D13:D35)","v":0},{"$f":"SUM(E13:E35)","v":0}]
[]
["UNDERWRITER SIGNATURE","DATE"]
[]
["NOTES"]
[]
["DO NOT USE NEGATIVE NUMBERS WHEN APPLYING A CREDIT"]
["SEE CLM INDIVIDUAL RISK PREMIUM MODIFICATION PLAN FOR COMPLETE DESCRIPTION OF CHARACTERISTICS AND RULES FOR APPLICATION"]

{"sheet":"KS","index":18,"n_rows":43,"n_cols":6,"rows_kept":43,"cut":false,"hidden":false,"merged":[[9,2,9,4],[10,3,10,4],[35,1,35,2],[0,0,0,5],[1,0,1,5],[2,0,2,5],[3,0,3,5],[4,0,4,5],[5,0,5,5],[6,0,6,5]]}
["KANSAS"]
["AIG PROPRIETARY IRPM RATING PLAN"]
["As of July 2023"]
["INDIVIDUAL RISK PREMIUM MODIFICATION PLAN"]
["RATING INFORMATION FORM"]
[]
["A schedule rating modification may also be applied to the otherwise chargeable premium in accordance with the following table, subject to a maximum credit of -40% or debit of +40%, to reflect such characteristics of the risk as are not reflected in its experience."]
["NAMED INSURED","EFFECTIVE DATE",null,null,null,"AIG COMPANY AND POLICY NUMBER"]
[]
["RISK ","DESCRIPTIONS","MODIFICATIONS",null,null,"REASONS"]
["CHARACTERISTICS",null,"RANGE","% APPLIED"]
[null,null,null,"CR","DB"]
["MANAGEMENT","Cooperation in matters of","18% +/-"]
[null,"safeguarding and property handling"]
[null,"of the property covered."]
[]
[]
["LOCATION","Accessibility, congestion and","16% +/-"]
[null,"exposures"]
[]
[]
["BUILDING FEATURES","Age, condition and unusual","14% +/-"]
[null,"structural features"]
[]
[]
["PREMISES AND","Care, condition and type","14% +/-"]
["EQUIPMENT"]
[]
[]
["EMPLOYEES","Selection, training, supervision","8% +/-"]
[null,"and experience"]
[]
[]
["PROTECTION","Not otherwise recognized","5% +/-"]
[]
[null,"TOTAL CR / DB:",null,{"$f":"SUM(D13:D35)","v":0},{"$f":"SUM(E13:E35)","v":0}]
[]
["UNDERWRITER SIGNATURE","DATE"]
[]
["NOTES"]
[]
["DO NOT USE NEGATIVE NUMBERS WHEN APPLYING A CREDIT"]
["SEE CLM INDIVIDUAL RISK PREMIUM MODIFICATION PLAN FOR COMPLETE DESCRIPTION OF CHARACTERISTICS AND RULES FOR APPLICATION"]

{"sheet":"KY","index":19,"n_rows":43,"n_cols":6,"rows_kept":43,"cut":false,"hidden":false,"merged":[[9,2,9,4],[10,3,10,4],[35,1,35,2],[1,0,1,5],[2,0,2,5],[3,0,3,5],[4,0,4,5],[5,0,5,5],[6,0,6,5]]}
["KENTUCKY"]
["AIG PROPRIETARY IRPM RATING PLAN"]
["As of July 2023"]
["INDIVIDUAL RISK PREMIUM MODIFICATION PLAN"]
["RATING INFORMATION FORM"]
["A schedule rating modification may also be applied to the otherwise chargeable premium in accordance with the following table, subject to a maximum credit of -50% or debit of +50%, to reflect such characteristics of the risk as are not reflected in its experience."]
[]
["NAMED INSURED","EFFECTIVE DATE",null,null,null,"AIG COMPANY AND POLICY NUMBER"]
[]
["RISK ","DESCRIPTIONS","MODIFICATIONS",null,null,"REASONS"]
["CHARACTERISTICS",null,"RANGE","% APPLIED"]
[null,null,null,"CR","DB"]
["MANAGEMENT","Cooperation in matters of","18% +/-"]
[null,"safeguarding and property handling"]
[null,"of the property covered."]
[]
[]
["LOCATION","Accessibility, congestion and","16% +/-"]
[null,"exposures"]
[]
[]
["BUILDING FEATURES","Age, condition and unusual","14% +/-"]
[null,"structural features"]
[]
[]
["PREMISES AND","Care, condition and type","14% +/-"]
["EQUIPMENT"]
[]
[]
["EMPLOYEES","Selection, training, supervision","8% +/-"]
[null,"and experience"]
[]
[]
["PROTECTION","Not otherwise recognized","5% +/-"]
[]
[null,"TOTAL CR / DB:",null,{"$f":"SUM(D13:D35)","v":0},{"$f":"SUM(E13:E35)","v":0}]
[]
["UNDERWRITER SIGNATURE","DATE"]
[]
["NOTES"]
[]
["DO NOT USE NEGATIVE NUMBERS WHEN APPLYING A CREDIT"]
["SEE CLM INDIVIDUAL RISK PREMIUM MODIFICATION PLAN FOR COMPLETE DESCRIPTION OF CHARACTERISTICS AND RULES FOR APPLICATION"]

{"sheet":"LA","index":20,"n_rows":43,"n_cols":6,"rows_kept":43,"cut":false,"hidden":false,"merged":[[6,0,6,5],[9,2,9,4],[10,3,10,4],[35,1,35,2],[0,0,0,5],[1,0,1,5],[2,0,2,5],[3,0,3,5],[4,0,4,5],[5,0,5,5]]}
["LOUISIANA"]
["ISO COUNTRYWIDE IRPM RATING PLAN"]
["As of July 2023"]
["INDIVIDUAL RISK PREMIUM MODIFICATION PLAN"]
["RATING INFORMATION FORM"]
[]
["A schedule rating modification may also be applied to the otherwise chargeable premium in accordance with the following table, subject to a maximum credit of -25% or debit of +25%, to reflect such characteristics of the risk as are not reflected in its experience."]
["NAMED INSURED","EFFECTIVE DATE",null,null,null,"AIG COMPANY AND POLICY NUMBER"]
[]
["RISK ","DESCRIPTIONS","MODIFICATIONS",null,null,"REASONS"]
["CHARACTERISTICS",null,"RANGE","% APPLIED"]
[null,null,null,"CR","DB"]
["MANAGEMENT","Cooperation in matters of","8% +/-"]
[null,"safeguarding and property handling"]
[null,"of the property covered."]
[]
[]
["LOCATION","Accessibility, congestion and","7% +/-"]
[null,"exposures"]
[]
[]
["BUILDING FEATURES","Age, condition and unusual","5% +/-"]
[null,"structural features"]
[]
[]
["PREMISES AND","Care, condition and type","5% +/-"]
["EQUIPMENT"]
[]
[]
["EMPLOYEES","Selection, training, supervision","3% +/-"]
[null,"and experience"]
[]
[]
["PROTECTION","Not otherwise recognized","2% +/-"]
[]
[null,"TOTAL CR / DB:",null,{"$f":"SUM(D13:D35)","v":0},{"$f":"SUM(E13:E35)","v":0}]
[]
["UNDERWRITER SIGNATURE","DATE"]
[]
["NOTES"]
[]
["DO NOT USE NEGATIVE NUMBERS WHEN APPLYING A CREDIT"]
["SEE CLM INDIVIDUAL RISK PREMIUM MODIFICATION PLAN FOR COMPLETE DESCRIPTION OF CHARACTERISTICS AND RULES FOR APPLICATION"]

{"sheet":"MA","index":21,"n_rows":44,"n_cols":6,"rows_kept":44,"cut":false,"hidden":false,"merged":[[35,1,35,2],[9,2,9,4],[1,0,1,5],[2,0,2,5],[3,0,3,5],[4,0,4,5],[10,3,10,4],[5,0,5,5],[6,0,6,5]]}
["MASSACHUSETTS"]
["ISO COUNTRYWIDE IRPM RATING PLAN"]
["As of July 2023"]
["INDIVIDUAL RISK PREMIUM MODIFICATION PLAN"]
["RATING INFORMATION FORM"]
[]
["A schedule rating modification may also be applied to the otherwise chargeable premium in accordance with the following table, subject to a maximum credit of -25% or debit of +25%, to reflect such characteristics of the risk as are not reflected in its experience."]
["NAMED INSURED","EFFECTIVE DATE",null,null,null,"AIG COMPANY AND POLICY NUMBER"]
[]
["RISK ","DESCRIPTIONS","MODIFICATIONS",null,null,"REASONS"]
["CHARACTERISTICS",null,"RANGE","% APPLIED"]
[null,null,null,"CR","DB"]
["MANAGEMENT","Cooperation in matters of","8%+/-"]
[null,"safeguarding and property handling"]
[null,"of the property covered."]
[]
[]
["LOCATION","Accessibility, congestion and","7% +/-"]
[null,"exposures"]
[]
[]
["BUILDING FEATURES","Age, condition and unusual","5% +/-"]
[null,"structural features"]
[]
[]
["PREMISES AND","Care, condition and type","5% +/-"]
["EQUIPMENT"]
[]
[]
["EMPLOYEES","Selection, training, supervision","3% +/-"]
[null,"and experience"]
[]
[]
["PROTECTION","Not otherwise recognized","2% +/-"]
[]
[null,"TOTAL CR / DB:",null,{"$f":"SUM(D13:D35)","v":0},{"$f":"SUM(E13:E35)","v":0}]
[]
["UNDERWRITER SIGNATURE","DATE"]
[]
[]
["NOTES"]
[]
["DO NOT USE NEGATIVE NUMBERS WHEN APPLYING A CREDIT"]
["SEE CLM INDIVIDUAL RISK PREMIUM MODIFICATION PLAN FOR COMPLETE DESCRIPTION OF CHARACTERISTICS AND RULES FOR APPLICATION"]

{"sheet":"ME","index":22,"n_rows":43,"n_cols":6,"rows_kept":43,"cut":false,"hidden":false,"merged":[[9,2,9,4],[10,3,10,4],[35,1,35,2],[1,0,1,5],[2,0,2,5],[3,0,3,5],[4,0,4,5],[5,0,5,5],[6,0,6,5]]}
["MAINE"]
["AIG PROPRIETARY IRPM RATING PLAN"]
["As of July 2023"]
["INDIVIDUAL RISK PREMIUM MODIFICATION PLAN"]
["RATING INFORMATION FORM"]
[]
["A schedule rating modification may also be applied to the otherwise chargeable premium in accordance with the following table, subject to a maximum credit of -40% or debit of +40%, to reflect such characteristics of the risk as are not reflected in its experience."]
["NAMED INSURED","EFFECTIVE DATE",null,null,null,"AIG COMPANY AND POLICY NUMBER"]
[]
["RISK ","DESCRIPTIONS","MODIFICATIONS",null,null,"REASONS"]
["CHARACTERISTICS",null,"RANGE","% APPLIED"]
[null,null,null,"CR","DB"]
["MANAGEMENT","Cooperation in matters of","18% +/-"]
[null,"safeguarding and property handling"]
[null,"of the property covered."]
[]
[]
["LOCATION","Accessibility, congestion and","16% +/-"]
[null,"exposures"]
[]
[]
["BUILDING FEATURES","Age, condition and unusual","14% +/-"]
[null,"structural features"]
[]
[]
["PREMISES AND","Care, condition and type","14% +/-"]
["EQUIPMENT"]
[]
[]
["EMPLOYEES","Selection, training, supervision","8% +/-"]
[null,"and experience"]
[]
[]
["PROTECTION","Not otherwise recognized","5% +/-"]
[]
[null,"TOTAL CR / DB:",null,{"$f":"SUM(D13:D35)","v":0},{"$f":"SUM(E13:E35)","v":0}]
[]
["UNDERWRITER SIGNATURE","DATE"]
[]
["NOTES"]
[]
["DO NOT USE NEGATIVE NUMBERS WHEN APPLYING A CREDIT"]
["SEE CLM INDIVIDUAL RISK PREMIUM MODIFICATION PLAN FOR COMPLETE DESCRIPTION OF CHARACTERISTICS AND RULES FOR APPLICATION"]

{"sheet":"MD","index":23,"n_rows":43,"n_cols":6,"rows_kept":43,"cut":false,"hidden":false,"merged":[[9,2,9,4],[10,3,10,4],[35,1,35,2],[1,0,1,5],[2,0,2,5],[3,0,3,5],[4,0,4,5],[5,0,5,5],[6,0,6,5]]}
["MARYLAND"]
["AIG PROPRIETARY IRPM RATING PLAN"]
["As of July 2023"]
["INDIVIDUAL RISK PREMIUM MODIFICATION PLAN"]
["RATING INFORMATION FORM"]
[]
["A schedule rating modification may also be applied to the otherwise chargeable premium in accordance with the following table, subject to a maximum credit of -40% or debit of +40%, to reflect such characteristics of the risk as are not reflected in its experience."]
["NAMED INSURED","EFFECTIVE DATE",null,null,null,"AIG COMPANY AND POLICY  NUMBER"]
[]
["RISK ","DESCRIPTIONS","MODIFICATIONS",null,null,"REASONS"]
["CHARACTERISTICS",null,"RANGE","% APPLIED"]
[null,null,null,"CR","DB"]
["MANAGEMENT","Cooperation in matters of","18% +/-"]
[null,"safeguarding and property handling"]
[null,"of the property covered."]
[]
[]
["LOCATION","Accessibility, congestion and","16% +/-"]
[null,"exposures"]
[]
[]
["BUILDING FEATURES","Age, condition and unusual","14% +/-"]
[null,"structural features"]
[]
[]
["PREMISES AND","Care, condition and type","14% +/-"]
["EQUIPMENT"]
[]
[]
["EMPLOYEES","Selection, training, supervision","8% +/-"]
[null,"and experience"]
[]
[]
["PROTECTION","Not otherwise recognized","5% +/-"]
[]
[null,"TOTAL CR / DB:",null,{"$f":"SUM(D13:D35)","v":0},{"$f":"SUM(E13:E35)","v":0}]
[]
["UNDERWRITER SIGNATURE","DATE"]
[]
["NOTES"]
[]
["DO NOT USE NEGATIVE NUMBERS WHEN APPLYING A CREDIT"]
["SEE CLM INDIVIDUAL RISK PREMIUM MODIFICATION PLAN FOR COMPLETE DESCRIPTION OF CHARACTERISTICS AND RULES FOR APPLICATION"]

{"sheet":"MI","index":24,"n_rows":44,"n_cols":6,"rows_kept":44,"cut":false,"hidden":false,"merged":[[11,3,11,4],[36,1,36,2],[0,0,0,5],[1,0,1,5],[2,0,2,5],[3,0,3,5],[4,0,4,5],[10,2,10,4],[5,0,5,5]]}
["MICHIGAN"]
["NEW HAMPSHIRE GROUP COMPANIES"]
["As of July 2023"]
["INDIVIDUAL RISK PREMIUM MODIFICATION PLAN"]
["RATING INFORMATION FORM"]
["A schedule rating modification may also be applied to the otherwise chargeable premium in accordance with the following table, subject to a maximum credit of -35% or debit of +35%, to reflect such characteristics of the risk as are not reflected in its experience."]
[]
["NAMED INSURED","EFFECTIVE DATE",null,null,null,"AIG COMPANY AND POLICY NUMBER"]
[]
[]
["RISK ","DESCRIPTIONS","MODIFICATIONS",null,null,"REASONS"]
["CHARACTERISTICS",null,"RANGE","% APPLIED"]
[null,null,null,"CR","DB"]
["MANAGEMENT","Cooperation in matters of","12% +/-"]
[null,"safeguarding and property handling"]
[null,"of the property covered."]
[]
[]
["LOCATION","Accessibility, congestion and","7% +/-"]
[null,"exposures"]
[]
[]
["BUILDING FEATURES","Age, condition and unusual","5% +/-"]
[null,"structural features"]
[]
[]
["PREMISES AND","Care, condition and type","10% +/-"]
["EQUIPMENT"]
[]
[]
["EMPLOYEES","Selection, training, supervision","8% +/-"]
[null,"and experience"]
[]
[]
["PROTECTION","Not otherwise recognized","2% +/-"]
[]
[null,"TOTAL CR / DB:"]
[]
["UNDERWRITER SIGNATURE","DATE"]
[]
["NOTES"]
[]
["DO NOT USE NEGATIVE NUMBERS WHEN APPLYING A CREDIT"]
["SEE CLM INDIVIDUAL RISK PREMIUM MODIFICATION PLAN FOR COMPLETE DESCRIPTION OF CHARACTERISTICS AND RULES FOR APPLICATION"]

{"sheet":"MN","index":25,"n_rows":43,"n_cols":6,"rows_kept":43,"cut":false,"hidden":false,"merged":[[9,2,9,4],[10,3,10,4],[35,1,35,2],[0,0,0,5],[1,0,1,5],[2,0,2,5],[3,0,3,5],[4,0,4,5],[5,0,5,5],[6,0,6,5]]}
["MINNESOTA"]
["AIG PROPRIETARY IRPM RATING PLAN"]
["As of July 2023"]
["INDIVIDUAL RISK PREMIUM MODIFICATION PLAN"]
["RATING INFORMATION FORM"]
[]
["A schedule rating modification may also be applied to the otherwise chargeable premium in accordance with the following table, subject to a maximum credit of -40% or debit of +40%, to reflect such characteristics of the risk as are not reflected in its experience."]
["NAMED INSURED","EFFECTIVE DATE",null,null,null,"AIG COMPANY AND POLICY NUMBER"]
[]
["RISK ","DESCRIPTIONS","MODIFICATIONS",null,null,"REASONS"]
["CHARACTERISTICS",null,"RANGE","% APPLIED"]
[null,null,null,"CR","DB"]
["MANAGEMENT","Cooperation in matters of","18% +/-"]
[null,"safeguarding and property handling"]
[null,"of the property covered."]
[]
[]
["LOCATION","Accessibility, congestion and","16% +/-"]
[null,"exposures"]
[]
[]
["BUILDING FEATURES","Age, condition and unusual","14% +/-"]
[null,"structural features"]
[]
[]
["PREMISES AND","Care, condition and type","14% +/-"]
["EQUIPMENT"]
[]
[]
["EMPLOYEES","Selection, training, supervision","8% +/-"]
[null,"and experience"]
[]
[]
["PROTECTION","Not otherwise recognized","5% +/-"]
[]
[null,"TOTAL CR / DB:",null,{"$f":"SUM(D13:D35)","v":0},{"$f":"SUM(E13:E35)","v":0}]
[]
["UNDERWRITER SIGNATURE","DATE"]
[]
["NOTES"]
[]
["DO NOT USE NEGATIVE NUMBERS WHEN APPLYING A CREDIT"]
["SEE CLM INDIVIDUAL RISK PREMIUM MODIFICATION PLAN FOR COMPLETE DESCRIPTION OF CHARACTERISTICS AND RULES FOR APPLICATION"]

{"sheet":"MO","index":26,"n_rows":43,"n_cols":6,"rows_kept":43,"cut":false,"hidden":false,"merged":[[6,0,6,5],[9,2,9,4],[10,3,10,4],[35,1,35,2],[0,0,0,5],[1,0,1,5],[2,0,2,5],[3,0,3,5],[4,0,4,5],[5,0,5,5]]}
["MISSOURI"]
["ISO COUNTRYWIDE IRPM RATING PLAN"]
["As of July 2023"]
["INDIVIDUAL RISK PREMIUM MODIFICATION PLAN"]
["RATING INFORMATION FORM"]
[]
["A schedule rating modification may also be applied to the otherwise chargeable premium in accordance with the following table, subject to a maximum credit of -25% or debit of +25%, to reflect such characteristics of the risk as are not reflected in its experience."]
["NAMED INSURED","EFFECTIVE DATE",null,null,null,"AIG COMPANY AND POLICY NUMBER"]
[]
["RISK ","DESCRIPTIONS","MODIFICATIONS",null,null,"REASONS"]
["CHARACTERISTICS",null,"RANGE","% APPLIED"]
[null,null,null,"CR","DB"]
["MANAGEMENT","Cooperation in matters of","8% +/-"]
[null,"safeguarding and property handling"]
[null,"of the property covered."]
[]
[]
["LOCATION","Accessibility, congestion and","7% +/-"]
[null,"exposures"]
[]
[]
["BUILDING FEATURES","Age, condition and unusual","5% +/-"]
[null,"structural features"]
[]
[]
["PREMISES AND","Care, condition and type","5% +/-"]
["EQUIPMENT"]
[]
[]
["EMPLOYEES","Selection, training, supervision","3% +/-"]
[null,"and experience"]
[]
[]
["PROTECTION","Not otherwise recognized","2% +/-"]
[]
[null,"TOTAL CR / DB:",null,{"$f":"SUM(D13:D35)","v":0},{"$f":"SUM(E13:E35)","v":0}]
[]
["UNDERWRITER SIGNATURE","DATE"]
[]
["NOTES"]
[]
["DO NOT USE NEGATIVE NUMBERS WHEN APPLYING A CREDIT"]
["SEE CLM INDIVIDUAL RISK PREMIUM MODIFICATION PLAN FOR COMPLETE DESCRIPTION OF CHARACTERISTICS AND RULES FOR APPLICATION"]

{"sheet":"MS","index":27,"n_rows":43,"n_cols":6,"rows_kept":43,"cut":false,"hidden":false,"merged":[[6,0,6,5],[9,2,9,4],[10,3,10,4],[35,1,35,2],[0,0,0,5],[1,0,1,5],[2,0,2,5],[3,0,3,5],[4,0,4,5],[5,0,5,5]]}
["MISSISSIPPI"]
["AIG PROPRIETARY IRPM RATING PLAN"]
["As of July 2023"]
["INDIVIDUAL RISK PREMIUM MODIFICATION PLAN"]
["RATING INFORMATION FORM"]
[]
["A schedule rating modification may also be applied to the otherwise chargeable premium in accordance with the following table, subject to a maximum credit of -40% or debit of +40%, to reflect such characteristics of the risk as are not reflected in its experience."]
["NAMED INSURED","EFFECTIVE DATE",null,null,null,"AIG COMPANY AND POLICY NUMBER"]
[]
["RISK ","DESCRIPTIONS","MODIFICATIONS",null,null,"REASONS"]
["CHARACTERISTICS",null,"RANGE","% APPLIED"]
[null,null,null,"CR","DB"]
["MANAGEMENT","Cooperation in matters of","18% +/-"]
[null,"safeguarding and property handling"]
[null,"of the property covered."]
[]
[]
["LOCATION","Accessibility, congestion and","16% +/-"]
[null,"exposures"]
[]
[]
["BUILDING FEATURES","Age, condition and unusual","14% +/-"]
[null,"structural features"]
[]
[]
["PREMISES AND","Care, condition and type","14% +/-"]
["EQUIPMENT"]
[]
[]
["EMPLOYEES","Selection, training, supervision","8% +/-"]
[null,"and experience"]
[]
[]
["PROTECTION","Not otherwise recognized","5% +/-"]
[]
[null,"TOTAL CR / DB:",null,{"$f":"SUM(D13:D35)","v":0},{"$f":"SUM(E13:E35)","v":0}]
[]
["UNDERWRITER SIGNATURE","DATE"]
[]
["NOTES"]
[]
["DO NOT USE NEGATIVE NUMBERS WHEN APPLYING A CREDIT"]
["SEE CLM INDIVIDUAL RISK PREMIUM MODIFICATION PLAN FOR COMPLETE DESCRIPTION OF CHARACTERISTICS AND RULES FOR APPLICATION"]

{"sheet":"MT","index":28,"n_rows":43,"n_cols":6,"rows_kept":43,"cut":false,"hidden":false,"merged":[[6,0,6,5],[9,2,9,4],[10,3,10,4],[35,1,35,2],[0,0,0,5],[1,0,1,5],[2,0,2,5],[3,0,3,5],[4,0,4,5],[5,0,5,5]]}
["MONTANA"]
["AIG PROPRIETARY IRPM RATING PLAN"]
["As of July 2023"]
["INDIVIDUAL RISK PREMIUM MODIFICATION PLAN"]
["RATING INFORMATION FORM"]
[]
["A schedule rating modification may also be applied to the otherwise chargeable premium in accordance with the following table, subject to a maximum credit of -40% or debit of +40%, to reflect such characteristics of the risk as are not reflected in its experience."]
["NAMED INSURED","EFFECTIVE DATE",null,null,null,"AIG COMPANY AND POLICY NUMBER"]
[]
["RISK ","DESCRIPTIONS","MODIFICATIONS",null,null,"REASONS"]
["CHARACTERISTICS",null,"RANGE","% APPLIED"]
[null,null,null,"CR","DB"]
["MANAGEMENT","Cooperation in matters of","18% +/-"]
[null,"safeguarding and property handling"]
[null,"of the property covered."]
[]
[]
["LOCATION","Accessibility, congestion and","16% +/-"]
[null,"exposures"]
[]
[]
["BUILDING FEATURES","Age, condition and unusual","14% +/-"]
[null,"structural features"]
[]
[]
["PREMISES AND","Care, condition and type","14% +/-"]
["EQUIPMENT"]
[]
[]
["EMPLOYEES","Selection, training, supervision","8% +/-"]
[null,"and experience"]
[]
[]
["PROTECTION","Not otherwise recognized","5% +/-"]
[]
[null,"TOTAL CR / DB:",null,{"$f":"SUM(D13:D35)","v":0},{"$f":"SUM(E13:E35)","v":0}]
[]
["UNDERWRITER SIGNATURE","DATE"]
[]
["NOTES"]
[]
["DO NOT USE NEGATIVE NUMBERS WHEN APPLYING A CREDIT"]
["SEE CLM INDIVIDUAL RISK PREMIUM MODIFICATION PLAN FOR COMPLETE DESCRIPTION OF CHARACTERISTICS AND RULES FOR APPLICATION"]

{"sheet":"NE","index":29,"n_rows":3,"n_cols":1,"rows_kept":3,"cut":false,"hidden":false,"merged":[[0,0,0,8],[2,0,2,8]]}
["NEBRASKA"]
["2023-07-01"]
["IRPM RATING IS NOT ALLOWED IN NEBRASKA "]

{"sheet":"NC","index":30,"n_rows":43,"n_cols":6,"rows_kept":43,"cut":false,"hidden":false,"merged":[[9,2,9,4],[10,3,10,4],[35,1,35,2],[1,0,1,5],[2,0,2,5],[3,0,3,5],[4,0,4,5],[5,0,5,5]]}
["NORTH CAROLINA"]
["AIG PROPRIETARY IRPM RATING PLAN"]
["As of July 2023"]
["INDIVIDUAL RISK PREMIUM MODIFICATION PLAN"]
["RATING INFORMATION FORM"]
["A schedule rating modification may also be applied to the otherwise chargeable premium in accordance with the following table, subject to a maximum credit of -50% or debit of +50%, to reflect such characteristics of the risk as are not reflected in its experience."]
["NAMED INSUED","EFFECTIVE DATE",null,null,null,"AIG  COMPANY AND POLICY NUMBER"]
[]
[]
["RISK ","DESCRIPTIONS","MODIFICATIONS",null,null,"REASONS"]
["CHARACTERISTICS",null,"RANGE","% APPLIED"]
[null,null,null,"CR","DB"]
["MANAGEMENT","Cooperation in matters of","18% +/-"]
[null,"safeguarding and property handling"]
[null,"of the property covered."]
[]
[]
["LOCATION","Accessibility, congestion and","16% +/-"]
[null,"exposures"]
[]
[]
["BUILDING FEATURES","Age, condition and unusual","14% +/-"]
[null,"structural features"]
[]
[]
["PREMISES AND","Care, condition and type","14% +/-"]
["EQUIPMENT"]
[]
[]
["EMPLOYEES","Selection, training, supervision","8% +/-"]
[null,"and experience"]
[]
[]
["PROTECTION","Not otherwise recognized","5% +/-"]
[]
[null,"TOTAL CR / DB:",null,{"$f":"SUM(D13:D35)","v":0},{"$f":"SUM(E13:E35)","v":0}]
[]
["UNDERWRITER SIGNATURE","  DATE"]
[]
["NOTES"]
[]
["DO NOT USE NEGATIVE NUMBERS WHEN APPLYING A CREDIT"]
["SEE CLM INDIVIDUAL RISK PREMIUM MODIFICATION PLAN FOR COMPLETE DESCRIPTION OF CHARACTERISTICS AND RULES FOR APPLICATION"]

{"sheet":"ND","index":31,"n_rows":43,"n_cols":6,"rows_kept":43,"cut":false,"hidden":false,"merged":[[6,0,6,5],[9,2,9,4],[10,3,10,4],[35,1,35,2],[0,0,0,5],[1,0,1,5],[2,0,2,5],[3,0,3,5],[4,0,4,5],[5,0,5,5]]}
["NORTH DAKOTA"]
["ISO COUNTRYWIDE IRPM RATING PLAN"]
["As of July 2023"]
["INDIVIDUAL RISK PREMIUM MODIFICATION PLAN"]
["RATING INFORMATION FORM"]
[]
["A schedule rating modification may also be applied to the otherwise chargeable premium in accordance with the following table, subject to a maximum credit of -25% or debit of +25%, to reflect such characteristics of the risk as are not reflected in its experience."]
["NAMED INSURED","EFFECTIVE DATE",null,null,null,"AIG COMPANY AND POLICY NUMBER"]
[]
["RISK ","DESCRIPTIONS","MODIFICATIONS",null,null,"REASONS"]
["CHARACTERISTICS",null,"RANGE","% APPLIED"]
[null,null,null,"CR","DB"]
["MANAGEMENT","Cooperation in matters of","8% +/-"]
[null,"safeguarding and property handling"]
[null,"of the property covered."]
[]
[]
["LOCATION","Accessibility, congestion and","7% +/-"]
[null,"exposures"]
[]
[]
["BUILDING FEATURES","Age, condition and unusual","5% +/-"]
[null,"structural features"]
[]
[]
["PREMISES AND","Care, condition and type","5% +/-"]
["EQUIPMENT"]
[]
[]
["EMPLOYEES","Selection, training, supervision","3% +/-"]
[null,"and experience"]
[]
[]
["PROTECTION","Not otherwise recognized","2% +/-"]
[]
[null,"TOTAL CR / DB:",null,{"$f":"SUM(D13:D35)","v":0},{"$f":"SUM(E13:E35)","v":0}]
[]
["UNDERWRITER SIGNATURE","DATE"]
[]
["NOTES"]
[]
["DO NOT USE NEGATIVE NUMBERS WHEN APPLYING A CREDIT"]
["SEE CLM INDIVIDUAL RISK PREMIUM MODIFICATION PLAN FOR COMPLETE DESCRIPTION OF CHARACTERISTICS AND RULES FOR APPLICATION"]

{"sheet":"NH","index":32,"n_rows":43,"n_cols":6,"rows_kept":43,"cut":false,"hidden":false,"merged":[[6,0,6,5],[9,2,9,4],[10,3,10,4],[35,1,35,2],[0,0,0,5],[1,0,1,5],[2,0,2,5],[3,0,3,5],[4,0,4,5],[5,0,5,5]]}
["NEW HAMPSHIRE"]
["AIG PROPRIETARY IRPM RATING PLAN"]
["As of July 2023"]
["INDIVIDUAL RISK PREMIUM MODIFICATION PLAN"]
["RATING INFORMATION FORM"]
[]
["A schedule rating modification may also be applied to the otherwise chargeable premium in accordance with the following table, subject to a maximum credit of -40% or debit of +40%, to reflect such characteristics of the risk as are not reflected in its experience."]
["NAMED INSURED","EFFECTIVE DATE",null,null,null,"AIG COMPANY AND POLICY NUMBER"]
[]
["RISK ","DESCRIPTIONS","MODIFICATIONS",null,null,"REASONS"]
["CHARACTERISTICS",null,"RANGE","% APPLIED"]
[null,null,null,"CR","DB"]
["MANAGEMENT","Cooperation in matters of","18% +/-"]
[null,"safeguarding and property handling"]
[null,"of the property covered."]
[]
[]
["LOCATION","Accessibility, congestion and","16% +/-"]
[null,"exposures"]
[]
[]
["BUILDING FEATURES","Age, condition and unusual","14% +/-"]
[null,"structural features"]
[]
[]
["PREMISES AND","Care, condition and type","14% +/-"]
["EQUIPMENT"]
[]
[]
["EMPLOYEES","Selection, training, supervision","8% +/-"]
[null,"and experience"]
[]
[]
["PROTECTION","Not otherwise recognized","5% +/-"]
[]
[null,"TOTAL CR / DB:",null,{"$f":"SUM(D13:D35)","v":0},{"$f":"SUM(E13:E35)","v":0}]
[]
["UNDERWRITER SIGNATURE","DATE"]
[]
["NOTES"]
[]
["DO NOT USE NEGATIVE NUMBERS WHEN APPLYING A CREDIT"]
["SEE CLM INDIVIDUAL RISK PREMIUM MODIFICATION PLAN FOR COMPLETE DESCRIPTION OF CHARACTERISTICS AND RULES FOR APPLICATION"]

{"sheet":"NV","index":33,"n_rows":43,"n_cols":6,"rows_kept":43,"cut":false,"hidden":false,"merged":[[6,0,6,5],[9,2,9,4],[10,3,10,4],[35,1,35,2],[0,0,0,5],[1,0,1,5],[2,0,2,5],[3,0,3,5],[4,0,4,5],[5,0,5,5]]}
["NEVADA"]
["ISO COUNTRYWIDE IRPM RATING PLAN"]
["As of July 2023"]
["INDIVIDUAL RISK PREMIUM MODIFICATION PLAN"]
["RATING INFORMATION FORM"]
[]
["A schedule rating modification may also be applied to the otherwise chargeable premium in accordance with the following table, subject to a maximum credit of -25% or debit of +25%, to reflect such characteristics of the risk as are not reflected in its experience."]
["NAMED INSURED","EFFECTIVE DATE",null,null,null,"AIG COMPANY AND POLICY NUMBER"]
[]
["RISK ","DESCRIPTIONS","MODIFICATIONS",null,null,"REASONS"]
["CHARACTERISTICS",null,"RANGE","% APPLIED"]
[null,null,null,"CR","DB"]
["MANAGEMENT","Cooperation in matters of","8% +/-"]
[null,"safeguarding and property handling"]
[null,"of the property covered."]
[]
[]
["LOCATION","Accessibility, congestion and","7% +/-"]
[null,"exposures"]
[]
[]
["BUILDING FEATURES","Age, condition and unusual","5% +/-"]
[null,"structural features"]
[]
[]
["PREMISES AND","Care, condition and type","5% +/-"]
["EQUIPMENT"]
[]
[]
["EMPLOYEES","Selection, training, supervision","3% +/-"]
[null,"and experience"]
[]
[]
["PROTECTION","Not otherwise recognized","2% +/-"]
[]
[null,"TOTAL CR / DB:",null,{"$f":"SUM(D13:D35)","v":0},{"$f":"SUM(E13:E35)","v":0}]
[]
["UNDERWRITER SIGNATURE","DATE"]
[]
["NOTES"]
[]
["DO NOT USE NEGATIVE NUMBERS WHEN APPLYING A CREDIT"]
["SEE CLM INDIVIDUAL RISK PREMIUM MODIFICATION PLAN FOR COMPLETE DESCRIPTION OF CHARACTERISTICS AND RULES FOR APPLICATION"]

{"sheet":"NJ","index":34,"n_rows":43,"n_cols":6,"rows_kept":43,"cut":false,"hidden":false,"merged":[[6,0,6,5],[9,2,9,4],[10,3,10,4],[35,1,35,2],[0,0,0,5],[1,0,1,5],[2,0,2,5],[3,0,3,5],[4,0,4,5],[5,0,5,5]]}
["NEW JERSEY"]
["ISO COUNTRYWIDE IRPM RATING PLAN"]
["As of July    2023"]
["INDIVIDUAL RISK PREMIUM MODIFICATION PLAN"]
["RATING INFORMATION FORM"]
[]
["A schedule rating modification may also be applied to the otherwise chargeable premium in accordance with the following table, subject to a maximum credit of -25% or debit of +25%, to reflect such characteristics of the risk as are not reflected in its experience."]
["NAMED INSURED","EFFECTIVE DATE",null,null,null,"AIG COMPANY AND POLICY NUMBER"]
[]
["RISK ","DESCRIPTIONS","MODIFICATIONS",null,null,"REASONS"]
["CHARACTERISTICS",null,"RANGE","% APPLIED"]
[null,null,null,"CR","DB"]
["MANAGEMENT","Cooperation in matters of","8% +/-"]
[null,"safeguarding and property handling"]
[null,"of the property covered."]
[]
[]
["LOCATION","Accessibility, congestion and","7% +/-"]
[null,"exposures"]
[]
[]
["BUILDING FEATURES","Age, condition and unusual","5% +/-"]
[null,"structural features"]
[]
[]
["PREMISES AND","Care, condition and type","5% +/-"]
["EQUIPMENT"]
[]
[]
["EMPLOYEES","Selection, training, supervision","3% +/-"]
[null,"and experience"]
[]
[]
["PROTECTION","Not otherwise recognized","2% +/-"]
[]
[null,"TOTAL CR / DB:",null,{"$f":"SUM(D13:D35)","v":0},{"$f":"SUM(E13:E35)","v":0}]
[]
["UNDERWRITER SIGNATURE","DATE"]
[]
["NOTES"]
[]
["DO NOT USE NEGATIVE NUMBERS WHEN APPLYING A CREDIT"]
["SEE CLM INDIVIDUAL RISK PREMIUM MODIFICATION PLAN FOR COMPLETE DESCRIPTION OF CHARACTERISTICS AND RULES FOR APPLICATION"]

{"sheet":"NM","index":35,"n_rows":43,"n_cols":6,"rows_kept":43,"cut":false,"hidden":false,"merged":[[6,0,6,5],[9,2,9,4],[10,3,10,4],[35,1,35,2],[0,0,0,5],[1,0,1,5],[2,0,2,5],[3,0,3,5],[4,0,4,5],[5,0,5,5]]}
["NEW MEXICO"]
["ISO COUNTRYWIDE IRPM RATING PLAN"]
["As of July 2023"]
["INDIVIDUAL RISK PREMIUM MODIFICATION PLAN"]
["RATING INFORMATION FORM"]
[]
["A schedule rating modification may also be applied to the otherwise chargeable premium in accordance with the following table, subject to a maximum credit of -25% or debit of +25%, to reflect such characteristics of the risk as are not reflected in its experience."]
["NAMED INSURED","EFFECTIVE DATE",null,null,null,"AIG COMPANY AND POLICY NUMBER"]
[]
["RISK ","DESCRIPTIONS","MODIFICATIONS",null,null,"REASONS"]
["CHARACTERISTICS",null,"RANGE","% APPLIED"]
[null,null,null,"CR","DB"]
["MANAGEMENT","Cooperation in matters of","8% +/-"]
[null,"safeguarding and property handling"]
[null,"of the property covered."]
[]
[]
["LOCATION","Accessibility, congestion and","7% +/-"]
[null,"exposures"]
[]
[]
["BUILDING FEATURES","Age, condition and unusual","5% +/-"]
[null,"structural features"]
[]
[]
["PREMISES AND","Care, condition and type","5% +/-"]
["EQUIPMENT"]
[]
[]
["EMPLOYEES","Selection, training, supervision","3% +/-"]
[null,"and experience"]
[]
[]
["PROTECTION","Not otherwise recognized","2% +/-"]
[]
[null,"TOTAL CR / DB:",null,{"$f":"SUM(D13:D35)","v":0},{"$f":"SUM(E13:E35)","v":0}]
[]
["UNDERWRITER SIGNATURE","DATE"]
[]
["NOTES"]
[]
["DO NOT USE NEGATIVE NUMBERS WHEN APPLYING A CREDIT"]
["SEE CLM INDIVIDUAL RISK PREMIUM MODIFICATION PLAN FOR COMPLETE DESCRIPTION OF CHARACTERISTICS AND RULES FOR APPLICATION"]

{"sheet":"NY","index":36,"n_rows":53,"n_cols":5,"rows_kept":53,"cut":false,"hidden":false,"merged":[[1,0,1,4],[3,0,3,4],[4,0,4,4],[0,0,0,4],[45,0,45,1],[7,1,7,3],[2,0,2,4],[8,2,8,3],[5,0,5,4]]}
["NEW YORK"]
["NEW HAMPSHIRE GROUP COMPANIES"]
["As of July 2023"]
["INDIVIDUAL RISK PREMIUM MODIFICATION PLAN"]
["RATING INFORMATION FORM"]
["A schedule rating modification may also be applied to the otherwise chargeable premium in accordance with the following table, subject to a maximum credit of -15% or debit of +15%, to reflect such characteristics of the risk as are not reflected in its experience."]
[]
["RISK ","MODIFICATIONS",null,null,"REASONS"]
["CHARACTERISTICS","RANGE","% APPLIED"]
[null,null,"CR","DB"]
["SUPERIOR/ADEQUATE/INADEQUATE RESPONSE","4% +/-"]
["TO REASONABLE RECOMMENDATIONS *"]
[]
["COOPERATION OR LACK THEREOF IN","4% +/-"]
["SAFEGUARDING PROPERTY COVERED *"]
[]
["SUPERIOR/ADEQUATE/INADEQUATE ACCESS TO","4% +/-"]
["PROPERTY COVERED *"]
[]
["SURROUNDING PREMISES PRESENT HIGH/AVE/LOW","3% +/-"]
["ADDITIONAL EXPOSURE TO PROPERTY COVERED"]
[]
["STRUCTURAL FEATURES CONTRIBUTION TO","3% +/-"]
["REDUCTION IN HAZARD *"]
[]
["SUPERIOR/ADEQUATE/INADEQUATE CONDITION OF","2% +/-"]
["PREMISES *"]
[]
["DESIGN FEATURES OF PREMISES WITH RESPECT","2% +/-",null," "]
["TO INTENDED PURPOSES OF OCCUPANT *"]
[]
["SUPERIOR/ADEQUATE/INADEQUATE CONDITION OF","2% +/-"]
["FIXTURES, MACHINERY & EQUIPMENT *"]
[]
["SUPERIOR/ADEQUATE/INADEQUATE EMPLOYEE","2% +/-"]
["SELECTION PROCESS *"]
[]
["SUPERIOR/ADEQUATE/INADEQUATE TRAINING AND","1% +/-"]
["SUPERVISION OF EMPLOYEES"]
[]
["SUPERIOR/ADEQUATE/INADEQUATE IDENTIFICATION,","1% +/-"]
["ISOLATION AND WARNINGS - HAZARDOUS AREAS *"]
[]
["SUPERIOR/ADEQUATE/INADEQUATE WINDSTORM LOSS","1% +/-"]
["PREVENTION MEASURES - BLDG AND CTS *"]
["TOTAL CR / DB:",null,{"$f":"SUM(C23:C45)","v":0},{"$f":"SUM(D23:D45)","v":0}]
[]
["UNDERWRITER SIGNATURE","DATE"]
[]
["NOTES"]
[]
["DO NOT USE NEGATIVE NUMBERS WHEN APPLYING A CREDIT"]
["SEE CLM INDIVIDUAL RISK PREMIUM MODIFICATION PLAN FOR COMPLETE DESCRIPTION OF CHARACTERISTICS AND RULES FOR APPLICATION"]

{"sheet":"OH","index":37,"n_rows":43,"n_cols":6,"rows_kept":43,"cut":false,"hidden":false,"merged":[[6,0,6,5],[9,2,9,4],[10,3,10,4],[35,1,35,2],[0,0,0,5],[1,0,1,5],[2,0,2,5],[3,0,3,5],[4,0,4,5],[5,0,5,5]]}
["OHIO"]
["ISO COUNTRYWIDE IRPM RATING PLAN"]
["As of July 2023"]
["INDIVIDUAL RISK PREMIUM MODIFICATION PLAN"]
["RATING INFORMATION FORM"]
[]
["A schedule rating modification may also be applied to the otherwise chargeable premium in accordance with the following table, subject to a maximum credit of -25% or debit of +25%, to reflect such characteristics of the risk as are not reflected in its experience."]
["NAMED INSURED","EFFECTIVE DATE",null,null,null,"AIG COMPANY AND  POLICY NUMBER"]
[]
["RISK ","DESCRIPTIONS","MODIFICATIONS",null,null,"REASONS"]
["CHARACTERISTICS",null,"RANGE","% APPLIED"]
[null,null,null,"CR","DB"]
["MANAGEMENT","Cooperation in matters of","8% +/-"]
[null,"safeguarding and property handling"]
[null,"of the property covered."]
[]
[]
["LOCATION","Accessibility, congestion and","7% +/-"]
[null,"exposures"]
[]
[]
["BUILDING FEATURES","Age, condition and unusual","5% +/-"]
[null,"structural features"]
[]
[]
["PREMISES AND","Care, condition and type","5% +/-"]
["EQUIPMENT"]
[]
[]
["EMPLOYEES","Selection, training, supervision","3% +/-"]
[null,"and experience"]
[]
[]
["PROTECTION","Not otherwise recognized","2% +/-"]
[]
[null,"TOTAL CR / DB:",null,{"$f":"SUM(D13:D35)","v":0},{"$f":"SUM(E13:E35)","v":0}]
[]
["UNDERWRITER SIGNATURE","DATE"]
[]
["NOTES"]
[]
["DO NOT USE NEGATIVE NUMBERS WHEN APPLYING A CREDIT"]
["SEE CLM INDIVIDUAL RISK PREMIUM MODIFICATION PLAN FOR COMPLETE DESCRIPTION OF CHARACTERISTICS AND RULES FOR APPLICATION"]

{"sheet":"OK","index":38,"n_rows":43,"n_cols":6,"rows_kept":43,"cut":false,"hidden":false,"merged":[[6,0,6,5],[9,2,9,4],[10,3,10,4],[35,1,35,2],[0,0,0,5],[1,0,1,5],[2,0,2,5],[3,0,3,5],[4,0,4,5],[5,0,5,5]]}
["OKLAHOMA"]
["AIG PROPRIETARY IRPM RATING PLAN"]
["As of July 2023"]
["INDIVIDUAL RISK PREMIUM MODIFICATION PLAN"]
["RATING INFORMATION FORM"]
[]
["A schedule rating modification may also be applied to the otherwise chargeable premium in accordance with the following table, subject to a maximum credit of -40% or debit of +40%, to reflect such characteristics of the risk as are not reflected in its experience."]
["NAMED INSURED","EFFECTIVE DATE",null,null,null,"AIG COMPANY AND POLICY NUMBER"]
[]
["RISK ","DESCRIPTIONS","MODIFICATIONS",null,null,"REASONS"]
["CHARACTERISTICS",null,"RANGE","% APPLIED"]
[null,null,null,"CR","DB"]
["MANAGEMENT","Cooperation in matters of","18% +/-"]
[null,"safeguarding and property handling"]
[null,"of the property covered."]
[]
[]
["LOCATION","Accessibility, congestion and","16% +/-"]
[null,"exposures"]
[]
[]
["BUILDING FEATURES","Age, condition and unusual","14% +/-"]
[null,"structural features"]
[]
[]
["PREMISES AND","Care, condition and type","14% +/-"]
["EQUIPMENT"]
[]
[]
["EMPLOYEES","Selection, training, supervision","8% +/-"]
[null,"and experience"]
[]
[]
["PROTECTION","Not otherwise recognized","5% +/-"]
[]
[null,"TOTAL CR / DB:",null,{"$f":"SUM(D13:D35)","v":0},{"$f":"SUM(E13:E35)","v":0}]
[]
["UNDERWRITER SIGNATURE","DATE"]
[]
["NOTES"]
[]
["DO NOT USE NEGATIVE NUMBERS WHEN APPLYING A CREDIT"]
["SEE CLM INDIVIDUAL RISK PREMIUM MODIFICATION PLAN FOR COMPLETE DESCRIPTION OF CHARACTERISTICS AND RULES FOR APPLICATION"]

{"sheet":"OR","index":39,"n_rows":43,"n_cols":6,"rows_kept":43,"cut":false,"hidden":false,"merged":[[6,0,6,5],[9,2,9,4],[10,3,10,4],[35,1,35,2],[0,0,0,5],[1,0,1,5],[2,0,2,5],[3,0,3,5],[4,0,4,5],[5,0,5,5]]}
["OREGON"]
["ISO COUNTRYWIDE IRPM RATING PLAN"]
["As of July 2023"]
["INDIVIDUAL RISK PREMIUM MODIFICATION PLAN"]
["RATING INFORMATION FORM"]
[]
["A schedule rating modification may also be applied to the otherwise chargeable premium in accordance with the following table, subject to a maximum credit of -25% or debit of +25%, to reflect such characteristics of the risk as are not reflected in its experience."]
["NAMED INSURED","EFFECTIVE DATE",null,null,null,"AIG COMPANY AND POLICY NUMBER"]
[]
["RISK ","DESCRIPTIONS","MODIFICATIONS",null,null,"REASONS"]
["CHARACTERISTICS",null,"RANGE","% APPLIED"]
[null,null,null,"CR","DB"]
["MANAGEMENT","Cooperation in matters of","8% +/-"]
[null,"safeguarding and property handling"]
[null,"of the property covered."]
[]
[]
["LOCATION","Accessibility, congestion and","7% +/-"]
[null,"exposures"]
[]
[]
["BUILDING FEATURES","Age, condition and unusual","5% +/-"]
[null,"structural features"]
[]
[]
["PREMISES AND","Care, condition and type","5% +/-"]
["EQUIPMENT"]
[]
[]
["EMPLOYEES","Selection, training, supervision","3% +/-"]
[null,"and experience"]
[]
[]
["PROTECTION","Not otherwise recognized","2% +/-"]
[]
[null,"TOTAL CR / DB:",null,{"$f":"SUM(D13:D35)","v":0},{"$f":"SUM(E13:E35)","v":0}]
[]
["UNDERWRITER SIGNATURE","DATE"]
[]
["NOTES"]
[]
["DO NOT USE NEGATIVE NUMBERS WHEN APPLYING A CREDIT"]
["SEE CLM INDIVIDUAL RISK PREMIUM MODIFICATION PLAN FOR COMPLETE DESCRIPTION OF CHARACTERISTICS AND RULES FOR APPLICATION"]

{"sheet":"PA","index":40,"n_rows":42,"n_cols":6,"rows_kept":42,"cut":false,"hidden":false,"merged":[[8,2,8,4],[9,3,9,4],[34,1,34,2],[1,0,1,5],[2,0,2,5],[3,0,3,5],[4,0,4,5],[5,0,5,5]]}
["PENNSYLVANIA"]
["AIG PROPRIETARY IRPM RATING PLAN"]
["As of July 2023"]
["INDIVIDUAL RISK PREMIUM MODIFICATION PLAN"]
["RATING INFORMATION FORM"]
["A schedule rating modification may also be applied to the otherwise chargeable premium in accordance with the following table, subject to a maximum credit of -40% or debit of +40%, to reflect such characteristics of the risk as are not reflected in its experience."]
["NAMED INSURED","EFFECTIVE DATE",null,null,null,"AIG COMPANY AND POLICY NUMBER"]
[]
["RISK ","DESCRIPTIONS","MODIFICATIONS",null,null,"REASONS"]
["CHARACTERISTICS",null,"RANGE","% APPLIED"]
[null,null,null,"CR","DB"]
["MANAGEMENT","Cooperation in matters of","18% +/-"]
[null,"safeguarding and property handling"]
[null,"of the property covered."]
[]
[]
["LOCATION","Accessibility, congestion and","16% +/-"]
[null,"exposures"]
[]
[]
["BUILDING FEATURES","Age, condition and unusual","14% +/-"]
[null,"structural features"]
[]
[]
["PREMISES AND","Care, condition and type","14% +/-"]
["EQUIPMENT"]
[]
[]
["EMPLOYEES","Selection, training, supervision","8% +/-"]
[null,"and experience"]
[]
[]
["PROTECTION","Not otherwise recognized","5% +/-"]
[]
[null,"TOTAL CR / DB:",null,{"$f":"SUM(D12:D34)","v":0},{"$f":"SUM(E12:E34)","v":0}]
[]
["UNDERWRITER SIGNATURE","DATE"]
[]
["NOTES"]
[]
["DO NOT USE NEGATIVE NUMBERS WHEN APPLYING A CREDIT"]
["SEE CLM INDIVIDUAL RISK PREMIUM MODIFICATION PLAN FOR COMPLETE DESCRIPTION OF CHARACTERISTICS AND RULES FOR APPLICATION"]

{"sheet":"RI","index":41,"n_rows":42,"n_cols":6,"rows_kept":42,"cut":false,"hidden":false,"merged":[[8,2,8,4],[9,3,9,4],[34,1,34,2],[1,0,1,5],[2,0,2,5],[3,0,3,5],[4,0,4,5],[5,0,5,5]]}
["RHODE ISLAND"]
["AIG PROPRIETARY IRPM RATING PLAN"]
["As of July 2023"]
["INDIVIDUAL RISK PREMIUM MODIFICATION PLAN"]
["RATING INFORMATION FORM"]
["A schedule rating modification may also be applied to the otherwise chargeable premium in accordance with the following table, subject to a maximum credit of -40% or debit of +40%, to reflect such characteristics of the risk as are not reflected in its experience."]
["NAMED INSURED","EFFECTIVE DATE",null,null,null,"AIG COMPANY AND POLICY NUMBER"]
[]
["RISK ","DESCRIPTIONS","MODIFICATIONS",null,null,"REASONS"]
["CHARACTERISTICS",null,"RANGE","% APPLIED"]
[null,null,null,"CR","DB"]
["MANAGEMENT","Cooperation in matters of","18% +/-"]
[null,"safeguarding and property handling"]
[null,"of the property covered."]
[]
[]
["LOCATION","Accessibility, congestion and","16% +/-"]
[null,"exposures"]
[]
[]
["BUILDING FEATURES","Age, condition and unusual","14% +/-"]
[null,"structural features"]
[]
[]
["PREMISES AND","Care, condition and type","14% +/-"]
["EQUIPMENT"]
[]
[]
["EMPLOYEES","Selection, training, supervision","8% +/-"]
[null,"and experience"]
[]
[]
["PROTECTION","Not otherwise recognized","5% +/-"]
[]
[null,"TOTAL CR / DB:",null,{"$f":"SUM(D12:D34)","v":0},{"$f":"SUM(E12:E34)","v":0}]
[]
["UNDERWRITER SIGNATURE","DATE"]
[]
["NOTES"]
[]
["DO NOT USE NEGATIVE NUMBERS WHEN APPLYING A CREDIT"]
["SEE CLM INDIVIDUAL RISK PREMIUM MODIFICATION PLAN FOR COMPLETE DESCRIPTION OF CHARACTERISTICS AND RULES FOR APPLICATION"]

{"sheet":"SC","index":42,"n_rows":42,"n_cols":6,"rows_kept":42,"cut":false,"hidden":false,"merged":[[8,2,8,4],[9,3,9,4],[34,1,34,2],[0,0,0,5],[1,0,1,5],[2,0,2,5],[3,0,3,5],[4,0,4,5],[5,0,5,5]]}
["SOUTH CAROLINA"]
["AIG PROPRIETARY IRPM RATING PLAN"]
["As of July 2023"]
["INDIVIDUAL RISK PREMIUM MODIFICATION PLAN"]
["RATING INFORMATION FORM"]
["A schedule rating modification may also be applied to the otherwise chargeable premium in accordance with the following table, subject to a maximum credit of -40% or debit of +25%, to reflect such characteristics of the risk as are not reflected in its experience."]
["NAMED INSURED","EFFECTIVE DATE",null,null,null,"AIG COMPANY AND POLICY NUMBER"]
[]
["RISK ","DESCRIPTIONS","MODIFICATIONS",null,null,"REASONS"]
["CHARACTERISTICS",null,"RANGE","% APPLIED"]
[null,null,null,"CR","DB"]
["MANAGEMENT","Cooperation in matters of","18% +/-"]
[null,"safeguarding and property handling"]
[null,"of the property covered."]
[]
[]
["LOCATION","Accessibility, congestion and","16% +/-"]
[null,"exposures"]
[]
[]
["BUILDING FEATURES","Age, condition and unusual","14% +/-"]
[null,"structural features"]
[]
[]
["PREMISES AND","Care, condition and type","14% +/-"]
["EQUIPMENT"]
[]
[]
["EMPLOYEES","Selection, training, supervision","8% +/-"]
[null,"and experience"]
[]
[]
["PROTECTION","Not otherwise recognized","5% +/-"]
[]
[null,"TOTAL CR / DB:",null,{"$f":"SUM(D12:D34)","v":0},{"$f":"SUM(E12:E34)","v":0}]
[]
["UNDERWRITER SIGNATURE","DATE"]
[]
["NOTES"]
[]
["DO NOT USE NEGATIVE NUMBERS WHEN APPLYING A CREDIT"]
["SEE CLM INDIVIDUAL RISK PREMIUM MODIFICATION PLAN FOR COMPLETE DESCRIPTION OF CHARACTERISTICS AND RULES FOR APPLICATION"]

{"sheet":"SD","index":43,"n_rows":43,"n_cols":6,"rows_kept":43,"cut":false,"hidden":false,"merged":[[6,0,6,5],[9,2,9,4],[10,3,10,4],[35,1,35,2],[0,0,0,5],[1,0,1,5],[2,0,2,5],[3,0,3,5],[4,0,4,5],[5,0,5,5]]}
["SOUTH DAKOTA"]
["ISO COUNTRYWIDE IRPM RATING PLAN"]
["As of July 2023"]
["INDIVIDUAL RISK PREMIUM MODIFICATION PLAN"]
["RATING INFORMATION FORM"]
[]
["A schedule rating modification may also be applied to the otherwise chargeable premium in accordance with the following table, subject to a maximum credit of -25% or debit of +25%, to reflect such characteristics of the risk as are not reflected in its experience."]
["NAMED INSURED","EFFECTIVE DATE",null,null,null,"AIG COMPANY AND POLICY NUMBER"]
[]
["RISK ","DESCRIPTIONS","MODIFICATIONS",null,null,"REASONS"]
["CHARACTERISTICS",null,"RANGE","% APPLIED"]
[null,null,null,"CR","DB"]
["MANAGEMENT","Cooperation in matters of","8% +/-"]
[null,"safeguarding and property handling"]
[null,"of the property covered."]
[]
[]
["LOCATION","Accessibility, congestion and","7% +/-"]
[null,"exposures"]
[]
[]
["BUILDING FEATURES","Age, condition and unusual","5% +/-"]
[null,"structural features"]
[]
[]
["PREMISES AND","Care, condition and type","5% +/-"]
["EQUIPMENT"]
[]
[]
["EMPLOYEES","Selection, training, supervision","3% +/-"]
[null,"and experience"]
[]
[]
["PROTECTION","Not otherwise recognized","2% +/-"]
[]
[null,"TOTAL CR / DB:",null,{"$f":"SUM(D13:D35)","v":0},{"$f":"SUM(E13:E35)","v":0}]
[]
["UNDERWRITER SIGNATURE","DATE"]
[]
["NOTES"]
[]
["DO NOT USE NEGATIVE NUMBERS WHEN APPLYING A CREDIT"]
["SEE CLM INDIVIDUAL RISK PREMIUM MODIFICATION PLAN FOR COMPLETE DESCRIPTION OF CHARACTERISTICS AND RULES FOR APPLICATION"]

{"sheet":"TN","index":44,"n_rows":42,"n_cols":6,"rows_kept":42,"cut":false,"hidden":false,"merged":[[8,2,8,4],[9,3,9,4],[34,1,34,2],[1,0,1,5],[2,0,2,5],[3,0,3,5],[4,0,4,5],[5,0,5,5]]}
["TENNESSEE"]
["AIG PROPRIETARY IRPM RATING PLAN"]
["As of July 2023"]
["INDIVIDUAL RISK PREMIUM MODIFICATION PLAN"]
["RATING INFORMATION FORM"]
["A schedule rating modification may also be applied to the otherwise chargeable premium in accordance with the following table, subject to a maximum credit of -50% or debit of +50%, to reflect such characteristics of the risk as are not reflected in its experience."]
["NAMED INSURED","EFECTIVE DATE",null,null,null,"AIG COMPANY AND POLICY NUMBER"]
[]
["RISK ","DESCRIPTIONS","MODIFICATIONS",null,null,"REASONS"]
["CHARACTERISTICS",null,"RANGE","% APPLIED"]
[null,null,null,"CR","DB"]
["MANAGEMENT","Cooperation in matters of","18% +/-"]
[null,"safeguarding and property handling"]
[null,"of the property covered."]
[]
[]
["LOCATION","Accessibility, congestion and","16% +/-"]
[null,"exposures"]
[]
[]
["BUILDING FEATURES","Age, condition and unusual","14% +/-"]
[null,"structural features"]
[]
[]
["PREMISES AND","Care, condition and type","14% +/-"]
["EQUIPMENT"]
[]
[]
["EMPLOYEES","Selection, training, supervision","8% +/-"]
[null,"and experience"]
[]
[]
["PROTECTION","Not otherwise recognized","5% +/-"]
[]
[null,"TOTAL CR / DB:",null,{"$f":"SUM(D12:D34)","v":0},{"$f":"SUM(E12:E34)","v":0}]
[]
["UNDERWRITER SIGNATURE","DATE"]
[]
["NOTES"]
[]
["DO NOT USE NEGATIVE NUMBERS WHEN APPLYING A CREDIT"]
["SEE CLM INDIVIDUAL RISK PREMIUM MODIFICATION PLAN FOR COMPLETE DESCRIPTION OF CHARACTERISTICS AND RULES FOR APPLICATION"]

{"sheet":"TX ","index":45,"n_rows":42,"n_cols":6,"rows_kept":42,"cut":false,"hidden":false,"merged":[[8,2,8,4],[9,3,9,4],[34,1,34,2],[1,0,1,5],[2,0,2,5],[3,0,3,5],[4,0,4,5],[5,0,5,5]]}
["TEXAS"]
["AIG PROPRIETARY IRPM RATING PLAN"]
["As of July 2023"]
["INDIVIDUAL RISK PREMIUM MODIFICATION PLAN"]
["RATING INFORMATION FORM"]
["A schedule rating modification may also be applied to the otherwise chargeable premium in accordance with the following table, subject to a maximum credit of -40% or debit of +40%, to reflect such characteristics of the risk as are not reflected in its experience."]
["NAMED INSURED","EFFECTIVE DATE",null,null,null,"AIG COMPANY AND POLICY NUMBER"]
[]
["RISK ","DESCRIPTIONS","MODIFICATIONS",null,null,"REASONS"]
["CHARACTERISTICS",null,"RANGE","% APPLIED"]
[null,null,null,"CR","DB"]
["MANAGEMENT","Cooperation in matters of","18% +/-"]
[null,"safeguarding and property handling"]
[null,"of the property covered."]
[]
[]
["LOCATION","Accessibility, congestion and","16% +/-"]
[null,"exposures"]
[]
[]
["BUILDING FEATURES","Age, condition and unusual","14% +/-"]
[null,"structural features"]
[]
[]
["PREMISES AND","Care, condition and type","14% +/-"]
["EQUIPMENT"]
[]
[]
["EMPLOYEES","Selection, training, supervision","8% +/-"]
[null,"and experience"]
[]
[]
["PROTECTION","Not otherwise recognized","5% +/-"]
[]
[null,"TOTAL CR / DB:",null,{"$f":"SUM(D12:D34)","v":0},{"$f":"SUM(E12:E34)","v":0}]
[]
["UNDERWRITER SIGNATURE","DATE"]
[]
["NOTES"]
[]
["DO NOT USE NEGATIVE NUMBERS WHEN APPLYING A CREDIT"]
["SEE CLM INDIVIDUAL RISK PREMIUM MODIFICATION PLAN FOR COMPLETE DESCRIPTION OF CHARACTERISTICS AND RULES FOR APPLICATION"]

{"sheet":"UT","index":46,"n_rows":43,"n_cols":6,"rows_kept":43,"cut":false,"hidden":false,"merged":[[6,0,6,5],[9,2,9,4],[10,3,10,4],[35,1,35,2],[0,0,0,5],[1,0,1,5],[2,0,2,5],[3,0,3,5],[4,0,4,5],[5,0,5,5]]}
["UTAH"]
["ISO COUNTRYWIDE IRPM RATING PLAN"]
["As of July 2023"]
["INDIVIDUAL RISK PREMIUM MODIFICATION PLAN"]
["RATING INFORMATION FORM"]
[]
["A schedule rating modification may also be applied to the otherwise chargeable premium in accordance with the following table, subject to a maximum credit of -25% or debit of +25%, to reflect such characteristics of the risk as are not reflected in its experience."]
["NAMED INSURED","EFFECTIVE DATE",null,null,null,"AIG COMPANY AND POLICY NUMBER"]
[]
["RISK ","DESCRIPTIONS","MODIFICATIONS",null,null,"REASONS"]
["CHARACTERISTICS",null,"RANGE","% APPLIED"]
[null,null,null,"CR","DB"]
["MANAGEMENT","Cooperation in matters of","8% +/-"]
[null,"safeguarding and property handling"]
[null,"of the property covered."]
[]
[]
["LOCATION","Accessibility, congestion and","7% +/-"]
[null,"exposures"]
[]
[]
["BUILDING FEATURES","Age, condition and unusual","5% +/-"]
[null,"structural features"]
[]
[]
["PREMISES AND","Care, condition and type","5% +/-"]
["EQUIPMENT"]
[]
[]
["EMPLOYEES","Selection, training, supervision","3% +/-"]
[null,"and experience"]
[]
[]
["PROTECTION","Not otherwise recognized","2% +/-"]
[]
[null,"TOTAL CR / DB:",null,{"$f":"SUM(D13:D35)","v":0},{"$f":"SUM(E13:E35)","v":0}]
[]
["UNDERWRITER SIGNATURE","DATE"]
[]
["NOTES"]
[]
["DO NOT USE NEGATIVE NUMBERS WHEN APPLYING A CREDIT"]
["SEE CLM INDIVIDUAL RISK PREMIUM MODIFICATION PLAN FOR COMPLETE DESCRIPTION OF CHARACTERISTICS AND RULES FOR APPLICATION"]

{"sheet":"VA","index":47,"n_rows":42,"n_cols":6,"rows_kept":42,"cut":false,"hidden":false,"merged":[[8,2,8,4],[9,3,9,4],[34,1,34,2],[1,0,1,5],[2,0,2,5],[3,0,3,5],[4,0,4,5],[5,0,5,5]]}
["VIRGINIA"]
["AIG PROPRIETARY IRPM RATING PLAN"]
["As of July 2023"]
["INDIVIDUAL RISK PREMIUM MODIFICATION PLAN"]
["RATING INFORMATION FORM"]
["A schedule rating modification may also be applied to the otherwise chargeable premium in accordance with the following table, subject to a maximum credit of -50% or debit of +50%, to reflect such characteristics of the risk as are not reflected in its experience."]
["NAMED INSURED","EFFECTIVE DATE",null,null,null,"AIG COMPANY AND POLICY NUMBER"]
[]
["RISK ","DESCRIPTIONS","MODIFICATIONS",null,null,"REASONS"]
["CHARACTERISTICS",null,"RANGE","% APPLIED"]
[null,null,null,"CR","DB"]
["MANAGEMENT","Cooperation in matters of","18% +/-"]
[null,"safeguarding and property handling"]
[null,"of the property covered."]
[]
[]
["LOCATION","Accessibility, congestion and","16% +/-"]
[null,"exposures"]
[]
[]
["BUILDING FEATURES","Age, condition and unusual","14% +/-"]
[null,"structural features"]
[]
[]
["PREMISES AND","Care, condition and type","14% +/-"]
["EQUIPMENT"]
[]
[]
["EMPLOYEES","Selection, training, supervision","8% +/-"]
[null,"and experience"]
[]
[]
["PROTECTION","Not otherwise recognized","5% +/-"]
[]
[null,"TOTAL CR / DB:",null,{"$f":"SUM(D12:D34)","v":0},{"$f":"SUM(E12:E34)","v":0}]
[]
["UNDERWRITER SIGNATURE","DATE"]
[]
["NOTES"]
[]
["DO NOT USE NEGATIVE NUMBERS WHEN APPLYING A CREDIT"]
["SEE CLM INDIVIDUAL RISK PREMIUM MODIFICATION PLAN FOR COMPLETE DESCRIPTION OF CHARACTERISTICS AND RULES FOR APPLICATION"]

{"sheet":"VT","index":48,"n_rows":42,"n_cols":6,"rows_kept":42,"cut":false,"hidden":false,"merged":[[8,2,8,4],[9,3,9,4],[34,1,34,2],[1,0,1,5],[2,0,2,5],[3,0,3,5],[4,0,4,5],[5,0,5,5]]}
["VERMONT"]
["AIG PROPRIETARY IRPM RATING PLAN"]
["As of July 2023"]
["INDIVIDUAL RISK PREMIUM MODIFICATION PLAN"]
["RATING INFORMATION FORM"]
["A schedule rating modification may also be applied to the otherwise chargeable premium in accordance with the following table, subject to a maximum credit of -50% or debit of +50%, to reflect such characteristics of the risk as are not reflected in its experience."]
["NAMED INSURED","EFFECTIVE DATE",null,null,null,"AIG COMPANY AND POLICY NUMBER"]
[]
["RISK ","DESCRIPTIONS","MODIFICATIONS",null,null,"REASONS"]
["CHARACTERISTICS",null,"RANGE","% APPLIED"]
[null,null,null,"CR","DB"]
["MANAGEMENT","Cooperation in matters of","18% +/-"]
[null,"safeguarding and property handling"]
[null,"of the property covered."]
[]
[]
["LOCATION","Accessibility, congestion and","16% +/-"]
[null,"exposures"]
[]
[]
["BUILDING FEATURES","Age, condition and unusual","14% +/-"]
[null,"structural features"]
[]
[]
["PREMISES AND","Care, condition and type","14% +/-"]
["EQUIPMENT"]
[]
[]
["EMPLOYEES","Selection, training, supervision","8% +/-"]
[null,"and experience"]
[]
[]
["PROTECTION","Not otherwise recognized","5% +/-"]
[]
[null,"TOTAL CR / DB:",null,{"$f":"SUM(D12:D34)","v":0},{"$f":"SUM(E12:E34)","v":0}]
[]
["UNDERWRITER SIGNATURE","DATE"]
[]
["NOTES"]
[]
["DO NOT USE NEGATIVE NUMBERS WHEN APPLYING A CREDIT"]
["SEE CLM INDIVIDUAL RISK PREMIUM MODIFICATION PLAN FOR COMPLETE DESCRIPTION OF CHARACTERISTICS AND RULES FOR APPLICATION"]

{"sheet":"WA","index":49,"n_rows":43,"n_cols":6,"rows_kept":43,"cut":false,"hidden":false,"merged":[[6,0,6,5],[9,2,9,4],[10,3,10,4],[35,1,35,2],[0,0,0,5],[1,0,1,5],[2,0,2,5],[3,0,3,5],[4,0,4,5],[5,0,5,5]]}
["WASHINGTON"]
["ISO COUNTRYWIDE IRPM RATING PLAN"]
["As of July 2023"]
["INDIVIDUAL RISK PREMIUM MODIFICATION PLAN"]
["RATING INFORMATION FORM"]
[]
["A schedule rating modification may also be applied to the otherwise chargeable premium in accordance with the following table, subject to a maximum credit of -25% or debit of +25%, to reflect such characteristics of the risk as are not reflected in its experience."]
["NAMED INSURED"," EFFECTIVE DATE",null,null,null,"AIG COMPANY AND  POLICY NUMBER"]
[]
["RISK ","DESCRIPTIONS","MODIFICATIONS",null,null,"REASONS"]
["CHARACTERISTICS",null,"RANGE","% APPLIED"]
[null,null,null,"CR","DB"]
["MANAGEMENT","Cooperation in matters of","8% +/-"]
[null,"safeguarding and property handling"]
[null,"of the property covered."]
[]
[]
["LOCATION","Accessibility, congestion and","7% +/-"]
[null,"exposures"]
[]
[]
["BUILDING FEATURES","Age, condition and unusual","5% +/-"]
[null,"structural features"]
[]
[]
["PREMISES AND","Care, condition and type","5% +/-"]
["EQUIPMENT"]
[]
[]
["EMPLOYEES","Selection, training, supervision","3% +/-"]
[null,"and experience"]
[]
[]
["PROTECTION","Not otherwise recognized","2% +/-"]
[]
[null,"TOTAL CR / DB:",null,{"$f":"SUM(D13:D35)","v":0},{"$f":"SUM(E13:E35)","v":0}]
[]
["UNDERWRITER SIGNATURE","DATE"]
[]
["NOTES"]
[]
["DO NOT USE NEGATIVE NUMBERS WHEN APPLYING A CREDIT"]
["SEE CLM INDIVIDUAL RISK PREMIUM MODIFICATION PLAN FOR COMPLETE DESCRIPTION OF CHARACTERISTICS AND RULES FOR APPLICATION"]

{"sheet":"WV","index":50,"n_rows":42,"n_cols":6,"rows_kept":42,"cut":false,"hidden":false,"merged":[[8,2,8,4],[9,3,9,4],[34,1,34,2],[1,0,1,5],[2,0,2,5],[3,0,3,5],[4,0,4,5],[5,0,5,5]]}
["WEST VIRGINIA"]
["AIG PROPRIETARY IRPM RATING PLAN"]
["As of July 2023"]
["INDIVIDUAL RISK PREMIUM MODIFICATION PLAN"]
["RATING INFORMATION FORM"]
["A schedule rating modification may also be applied to the otherwise chargeable premium in accordance with the following table, subject to a maximum credit of -40% or debit of +40%, to reflect such characteristics of the risk as are not reflected in its experience."]
["NAMED INSURED","EFFECTIVE DATE",null,null,null,"AIG COMPANY AND POLICY NUMBER"]
[]
["RISK ","DESCRIPTIONS","MODIFICATIONS",null,null,"REASONS"]
["CHARACTERISTICS",null,"RANGE","% APPLIED"]
[null,null,null,"CR","DB"]
["MANAGEMENT","Cooperation in matters of","18% +/-"]
[null,"safeguarding and property handling"]
[null,"of the property covered."]
[]
[]
["LOCATION","Accessibility, congestion and","16% +/-"]
[null,"exposures"]
[]
[]
["BUILDING FEATURES","Age, condition and unusual","14% +/-"]
[null,"structural features"]
[]
[]
["PREMISES AND","Care, condition and type","14% +/-"]
["EQUIPMENT"]
[]
[]
["EMPLOYEES","Selection, training, supervision","8% +/-"]
[null,"and experience"]
[]
[]
["PROTECTION","Not otherwise recognized","5% +/-"]
[]
[null,"TOTAL CR / DB:",null,{"$f":"SUM(D12:D34)","v":0},{"$f":"SUM(E12:E34)","v":0}]
[]
["UNDERWRITER SIGNATURE","DATE"]
[]
["NOTES"]
[]
["DO NOT USE NEGATIVE NUMBERS WHEN APPLYING A CREDIT"]
["SEE CLM INDIVIDUAL RISK PREMIUM MODIFICATION PLAN FOR COMPLETE DESCRIPTION OF CHARACTERISTICS AND RULES FOR APPLICATION"]

{"sheet":"WI","index":51,"n_rows":42,"n_cols":6,"rows_kept":42,"cut":false,"hidden":false,"merged":[[8,2,8,4],[9,3,9,4],[34,1,34,2],[1,0,1,5],[2,0,2,5],[3,0,3,5],[4,0,4,5],[5,0,5,5]]}
["WISCONSIN"]
["AIG PROPRIETARY IRPM RATING PLAN"]
["As of July 2023"]
["INDIVIDUAL RISK PREMIUM MODIFICATION PLAN"]
["RATING INFORMATION FORM"]
["A schedule rating modification may also be applied to the otherwise chargeable premium in accordance with the following table, subject to a maximum credit of -50% or debit of +50%, to reflect such characteristics of the risk as are not reflected in its experience."]
["NAMED INSURED","EFFECTIVE DATE",null,null,null,"AIG COMPANY AND POLICY NUMBER"]
[]
["RISK ","DESCRIPTIONS","MODIFICATIONS",null,null,"REASONS"]
["CHARACTERISTICS",null,"RANGE","% APPLIED"]
[null,null,null,"CR","DB"]
["MANAGEMENT","Cooperation in matters of","18% +/-"]
[null,"safeguarding and property handling"]
[null,"of the property covered."]
[]
[]
["LOCATION","Accessibility, congestion and","16% +/-"]
[null,"exposures"]
[]
[]
["BUILDING FEATURES","Age, condition and unusual","14% +/-"]
[null,"structural features"]
[]
[]
["PREMISES AND","Care, condition and type","14% +/-"]
["EQUIPMENT"]
[]
[]
["EMPLOYEES","Selection, training, supervision","8% +/-"]
[null,"and experience"]
[]
[]
["PROTECTION","Not otherwise recognized","5% +/-"]
[]
[null,"TOTAL CR / DB:",null,{"$f":"SUM(D12:D34)","v":0},{"$f":"SUM(E12:E34)","v":0}]
[]
["UNDERWRITER SIGNATURE","DATE"]
[]
["NOTES"]
[]
["DO NOT USE NEGATIVE NUMBERS WHEN APPLYING A CREDIT"]
["SEE CLM INDIVIDUAL RISK PREMIUM MODIFICATION PLAN FOR COMPLETE DESCRIPTION OF CHARACTERISTICS AND RULES FOR APPLICATION"]

{"sheet":"WY","index":52,"n_rows":42,"n_cols":6,"rows_kept":42,"cut":false,"hidden":false,"merged":[[8,2,8,4],[9,3,9,4],[34,1,34,2],[1,0,1,5],[2,0,2,5],[3,0,3,5],[4,0,4,5],[5,0,5,5]]}
["WYOMING"]
["AIG PROPRIETARY IRPM RATING PLAN"]
["As of July 2023"]
["INDIVIDUAL RISK PREMIUM MODIFICATION PLAN"]
["RATING INFORMATION FORM"]
["A schedule rating modification may also be applied to the otherwise chargeable premium in accordance with the following table, subject to a maximum credit of -50% or debit of +50%, to reflect such characteristics of the risk as are not reflected in its experience."]
["NAMED INSURED","EFFECTIVE DATE",null,null,null,"AIG COMPANY AND POLICY NUMBER"]
[]
["RISK ","DESCRIPTIONS","MODIFICATIONS",null,null,"REASONS"]
["CHARACTERISTICS",null,"RANGE","% APPLIED"]
[null,null,null,"CR","DB"]
["MANAGEMENT","Cooperation in matters of","18% +/-"]
[null,"safeguarding and property handling"]
[null,"of the property covered."]
[]
[]
["LOCATION","Accessibility, congestion and","16% +/-"]
[null,"exposures"]
[]
[]
["BUILDING FEATURES","Age, condition and unusual","14% +/-"]
[null,"structural features"]
[]
[]
["PREMISES AND","Care, condition and type","14% +/-"]
["EQUIPMENT"]
[]
[]
["EMPLOYEES","Selection, training, supervision","8% +/-"]
[null,"and experience"]
[]
[]
["PROTECTION","Not otherwise recognized","5% +/-"]
[]
[null,"TOTAL CR / DB:",null,{"$f":"SUM(D12:D34)","v":0},{"$f":"SUM(E12:E34)","v":0}]
[]
["UNDERWRITER SIGNATURE","DATE"]
[]
["NOTES"]
[]
["DO NOT USE NEGATIVE NUMBERS WHEN APPLYING A CREDIT"]
["SEE CLM INDIVIDUAL RISK PREMIUM MODIFICATION PLAN FOR COMPLETE DESCRIPTION OF CHARACTERISTICS AND RULES FOR APPLICATION"]